{"text_format":"1","workbook":"xlsx","n_sheets":23,"sheets":["Cover Page","Facility Info","Operational Data","Operational Summary","Perf. Form 1","Energy Form 1","Permit Compliance","Improvements","Public Liasion","CO2 N2O","Residues","Water","Air (periodic)","Air (CEMS)","HCl","SO2","NOx","TOC","Particulates","CO 0.5 hourly","CO 95% 10 min","NH3","Template changes log"],"not_rendered":{"charts":8,"images":3,"macros":1,"external_links":0,"defined_names":23,"comments":0,"pivot_tables":0},"unopened":[],"bounds":{"document_bytes":16777216,"sheet_cells":100000,"rows_first":2000,"rows_last":500,"rows_between":2000,"halvings":0,"cell_chars":16384,"cell_head_chars":4096},"cells_cut":0,"cells_raw":0,"read":"whole","date_system":"1900"}

{"sheet":"Cover Page","index":0,"n_rows":53,"n_cols":11,"rows_kept":53,"cut":false,"hidden":false,"merged":[[48,6,48,8],[52,2,52,3],[36,1,36,8],[40,2,40,8],[42,2,42,4],[44,2,44,4],[46,6,46,8],[46,2,46,4],[48,2,48,4],[13,10,18,12],[34,1,34,8],[0,3,5,6],[7,1,23,8],[28,1,28,8],[30,1,30,8],[32,1,32,8]]}
[null,null,null,"Add company logo"]
[null,null,null,null,null,null,null,null,null,null,"Template version 25.1a (for incinerators) - 27/11/25"]
[]
[null,null,null,null,null,null,null,null,null,null,"Note that there is another version of this template available for co-incinerators"]
[]
[]
[]
[null,"Add photo"]
[]
[]
[]
[]
[null,null,null,null,null,null,null,null,null,null,"Notes:"]
[null,null,null,null,null,null,null,null,null,null,"This template may require adjustments by individual operators to meet specific reporting requirements as defined in the site Permit(s)"]
[]
[]
[]
[]
[]
[]
[]
[]
[]
[]
[]
[]
[]
[]
[null,"Annual Performance Report 2025"]
[]
[null,"Permit EPR/JP3135DK"]
[]
[null,"Kemsley Generating Station"]
[]
[null,"K3 CHP"]
[]
[null,"enfinium K3 CHP Operations Limited"]
[]
[null,"Year:",2025]
[]
[null,"Address:","Barge Way, Sittingbourne, Kent, ME10 2FP"]
[]
[null,"Tel: ","01795 685740"]
[]
[null,"Email: ","luke.clothier@enfinium.co.uk"]
[]
[null,"Prepared by:","Luke Clothier",null,null,"Position:","Environmental Officer"]
[]
[null,"Approved by:","Stuart Kirk",null,null,"Position:","Plant Manager"]
[]
[null,"Version:",1]
[]
[null,"Issue Date:","28/01/26"]

{"sheet":"Facility Info","index":1,"n_rows":22,"n_cols":11,"rows_kept":22,"cut":false,"hidden":false,"merged":[[4,0,17,8],[21,0,53,8],[4,10,13,13],[21,10,30,13]]}
[{"$f":"+'Cover Page'!$B$29","v":"Annual Performance Report 2025"},null,null,null,{"$f":"+'Cover Page'!$B$33","v":"Kemsley Generating Station"}]
[]
["Plant Description and Design",null,null,null,null,null,null,null,null,null,"Notes:"]
[]
["The Kemsley Energy Recovery Facility (ERF) forms part of the Kemsley Paper Mill installation comprising of the DS Smith Kemsley Paper Mill and the E.On combined heat and power facility. It is located at grid reference 592170,166640 to the east of Kemsley, 3 km north of Sittingbourne and 2.5 km south east of Iwade.\n\nThe installation consists of two combustion lines and processes up to 657,000 tonnes of residual waste per annum (tpa); primarily commercial and industrial (C&I) waste and residual Municipal Solid Waste (MSW) which is collected and delivered by external waste management companies.  \n\nEnergy is recovered in the process by utilising the steam generated in the boiler to drive a turbine to generate electricity. Approximately 69MW of electricity can be exported to grid per hour and 55MWth per hour of steam can be supplied to neighbouring businesses (the paper mill when it is running at capacity). Recyclable materials in the form of incinerator bottom ash (IBA) and metals from the IBA are also recovered from the process. \n\nThe existing permit (Permit number EPR/JP3135DK) allows the facility to accept municipal, industrial and commercial waste and undertake the following activities:\n•\tReceipt and storage of waste pending processing;\n•\tElectricity and steam generation; and\n•\tDisposal of waste arising (incinerator bottom ash (IBA) and air pollution control residues (APCR).\n\t\t\t\t\t\t\t\t\n\t\t\t\t\t\t\t\t\n\t\t\t\t\t\t\t\t\n\t\t\t\t\t\t\t\t\n\t\t\t\t\t\t\t\t\n\t\t\t\t\t\t\t\t\n\t\t\t\t\t\t\t\t\n\t\t\t\t\t\t\t\t\n\t\t\t\t\t\t\t\t\n\t\t\t\t\t\t\t\t\n\t\t\t\t\t\t\t\t\n\t\t\t\t\t\t\t\t\n\t\t\t\t\t\t\t\t",null,null,null,null,null,null,null,null,null,"Include summary of plant design, design capacity, no. of combustion lines, electrical and heat capacity and any other general information that describes the facility, its location and purpose "]
[]
[]
[]
[]
[]
[]
[]
[]
[]
[]
[]
[]
[]
[]
["Summary of Operational Processes and Procedures"]
[]
["Municipal solid wastes and commercial wastes accepted at the installation are delivered in covered vehicles or containers. All vehicles delivering the waste are weighed in at the weighbridge before entering the Tipping Hall and being allowed to discharge waste.\n\nThe residual waste is discharged into the bunker with assistance using mobile plant and is utilised as feedstock for the EfW. The waste in the bunker is mixed with a crane to create a homogenous feedstock and to prevent anaerobic conditions and excess odour.\n\nWaste is loaded into the incinerator, using the crane, via the feed hopper. The facility processes waste using air cooled, moving grate technology. The grate is split into 5 zones; zone 1 is the drying zone; 2-3 are the main combustion zones and 4-5 are the burn out zones. Primary and secondary air supply is controlled to ensure good combustion conditions, additional support in combustion is provided through tertiary air injection. A temperature of at least 850°C for at least 2 seconds (T2S) is achieved.\n\nAfter the waste has been burned the remaining unburnt material, called incinerator bottom ash (IBA) is quenched in water. The bottom ash is transported by conveyor to an indoor storage area. The IBA is stored here until it is sent off site to a suitably licensed waste treatment facility for re-processing/recovery.\n\nThe flue gas is treated within the dry Flue Gas Treatment (FGT) system to reduce the level of pollutants emitted and to comply with the requirements of the Industrial Emissions Directive (IED) and the Environmental Permit. Oxides of Nitrogen (NOx) are abated using dry urea; acid gases such as Hydrogen Chloride (HCl) and Sulphur Dioxide (SO2) are abated using hydrated lime injection. For dioxins and mercury, Powdered Activated Carbon (PAC) abatement is used. Fabric bag filters are utilised for the abatement of particulate matter and also to collect the by-products from both reactions known as Air Pollution Control Residue (APCr) which is transferred to a silo then to a tanker (or sealed bags are sometimes used) for removal from the facility and disposal at a suitably licenced premises. \n\nFollowing clean up, the flue gas is emitted to air through the 90m high stack. The flue gases entering the stack are continuously monitored for HCl, SO2, TOC, CO, NOx, NH3 and Particulates against limits as laid down in the Environmental Permit.\n\nThe heat from the combustion process is used to convert water into high-pressure steam, that steam then powers a turbine to generate electricity for internal use and for export to the National Grid. The facility also has combined heat and power (CHP) capability and supplies the adjacent DS Smith paper mill with steam. Spent steam from the turbine is converted back to condensate in an air-cooled condenser, which feeds back into the condensate tank. The facility is designed to export up to 69MW of electricity (permitted electrical generation capacity of 74MWe) to the grid, and 55 MWth of steam (permitted heat export capacity of 204 MWth) to the paper mill when it is running at capacity.\n\nThe facility is certified to ISO 45001, 9001 and 14001 and operates an accredited Management System housing the processes and procedures to be followed. The facility has procedures in place including emergency procedures, operating instructions, method statements and risk assessments. All health, safety and environmental incidents, events and resulting investigations and actions are managed within the companies EHS reporting system.\n\nThe facility has a Computer Maintenance Management System (CMMS) in place housing all maintenance tasks and defect reporting. Planned outages take place at specified intervals to allow for boiler cleaning, statutory and essential maintenance to maintain plant reliability and efficiency.\t\t\t\t\t\t\n\t\t\t\t\t\t\t\t\n\t\t\t\t\t\t\t\t\n\t\t\t\t\t\t\t\t\n\t\t\t\t\t\t\t\t\n\t\t\t\t\t\t\t\t\n\t\t\t\t\t\t\t\t\n\t\t\t\t\t\t\t\t\n\t\t\t\t\t\t\t\t\n\t\t\t\t\t\t\t\t\n\t\t\t\t\t\t\t\t\n\t\t\t\t\t\t\t\t\n\t\t\t\t\t\t\t\t\n\t\t\t\t\t\t\t\t\n\t\t\t\t\t\t\t\t\n\t\t\t\t\t\t\t\t\n\t\t\t\t\t\t\t\t\n\t\t\t\t\t\t\t\t\n\t\t\t\t\t\t\t\t\n\t\t\t\t\t\t\t\t\n\t\t\t\t\t\t\t\t\n\t\t\t\t\t\t\t\t\n\t\t\t\t\t\t\t\t\n\t\t\t\t\t\t\t\t\n\t\t\t\t\t\t\t\t\n\t\t\t\t\t\t\t\t\n\t\t\t\t\t\t\t\t\n\t\t\t\t\t\t\t\t\n\t\t\t\t\t\t\t\t\n\t\t\t\t\t\t\t\t\n\t\t\t\t\t\t\t\t\n\t\t\t\t\t\t\t\t\n\t\t\t\t\t\t\t\t",null,null,null,null,null,null,null,null,null,"Include summary of key processes and procedures such as (but not limited to); waste reception, control rooms, grate, bed and boiler, energy & heat  generation, cooling systems, residue management, emission controls, health and safety systems, maintenance"]

{"sheet":"Operational Data","index":2,"n_rows":65,"n_cols":10,"rows_kept":65,"cut":false,"hidden":false,"merged":[[4,9,23,9],[25,9,29,9],[53,0,57,0],[34,1,39,1],[3,1,3,2],[10,1,22,1],[26,1,28,1],[7,2,7,3]]}
[{"$f":"+'Cover Page'!$B$29","v":"Annual Performance Report 2025"},null,null,null,{"$f":"+'Cover Page'!$B$33","v":"Kemsley Generating Station"}]
[]
["Operational Data"]
["Plant Size:",657000,null,"tonnes pa",null,null,null,null,null,"Notes:"]
["Nominal net thermal input:",204,"MWth",null,null,null,null,null,null,"* Export capacity = nominal generation capacity at the generator terminals minus nominal parasitic load.\n\n** CHP and district heating plants only - put N/A if no heat export.\n\n***  Combusted tonnage = tonnes delivered in period + (tonnes in bunker at start of period – tonnes in bunker at end of period), or equivalent calculation depending on plant type\n\n**** Availability Definition: The availability of a line is to be calculated by the number of hours the line reported Continuously Monitored emission levels to the Regulator through the calendar year divided by the total number of hours in that year. \n\nThe overall plant availability is calculated as the mean of all lines in the plant. For clarity this includes periods of abnormal operation.  \n\nRationale: The primary function of an Energy from Waste facility is the disposal of waste. It follows therefore that the availability of a plant is determined by the period of time a facility spends undertaking this activity.\n\n*****NCV of waste: This should be completed for all plants which have a boiler. Calculate using total thermal power produced by boiler/boiler efficiency, or other suitable calculation. \n"]
["Nominal electrical export capacity*:",68.86,"MWe"]
["Nominal heat export capacity**:",55,"MWth"]
["No. of combustion lines:",2,"No. of steam turbines:",null,1]
[]
["Waste types received","Unit","Q1","Q2","Q3","Q4","Year Total","%"]
["Household / Local Authority","tonnes",75546,93992.44,91348.900000000009,87406.42,{"$f":"SUM(C11:F11)","v":348293.76},{"$f":"IF(G11>0,G11/$G$21,\"-\")","v":0.69789971103669124}]
["Commercial & Industrial ",null,18399,26466.76,22320.02,28264.1,{"$f":"SUM(C12:F12)","v":95449.88},0.19125936585968942]
["Hazardous ",null,0,0,0,0,0,"-"]
["Clinical",null,0,0,0,0,0,"-"]
["Waste wood (biomass) ",null,0,0,0,0,0,"-"]
["Refuse Derived Fuel (incl. SRF) - H'hold/LA",null,0,0,0,0,{"$f":"SUM(C16:F16)","v":0},"-"]
["Refuse Derived Fuel (incl. SRF) - C&I",null,12833,13593.32,10844.66,18045.28,55316.259999999995,0.11084092310361943]
["Other [Please specify]",null,0,0,0,0,0,"-"]
["Other [Please specify]",null,0,0,0,0,0,"-"]
["Other [Please specify]",null,0,0,0,0,0,"-"]
["Total waste received",null,{"$f":"SUM(C11:C20)","v":106778},{"$f":"SUM(D11:D20)","v":134052.51999999999},{"$f":"SUM(E11:E20)","v":124513.58000000002},{"$f":"SUM(F11:F20)","v":133715.79999999999},499059.89999999997]
["Rejected Waste ",null,0,0,0,0,{"$f":"SUM(C22:F22)","v":0},{"$f":"IF(G22>0,G22/$G$21,\"-\")","v":"-"}]
["Unprocessed waste transferred out",null,0,0,0,0,{"$f":"SUM(C23:F23)","v":0},{"$f":"IF(G23>0,G23/$G$21,\"-\")","v":"-"}]
["Total waste combusted ***",null,107583,133713,123427,135717,{"$f":"SUM(C24:F24)","v":500440}]
[]
["Energy Usage / Export","Unit","Q1","Q2","Q3","Q4","Year Total","KWh/te",null,"Password for protected cells\nA password has been set to prevent accidental  editing of cells with formulae. \nIf you still need to make an edit for some reason then the password = 1234"]
["Power generated at generator terminals","MWh",38902,0,62363,89773,{"$f":"SUM(C27:F27)","v":191038},{"$f":"IF(G27>0,G27*1000/$G$24,\"-\")","v":381.74006873950924}]
["Power exported to grid and other external user(s)",null,34110,0,53887,77657,{"$f":"SUM(C28:F28)","v":165654},{"$f":"IF(G28>0,G28*1000/$G$24,\"-\")","v":331.01670529933659}]
["Power imported",null,3260.6,11206,3418.9,77.8,17963.3,{"$f":"IF(G29>0,G29*1000/$G$24,\"-\")","v":35.895012389097595}]
["Indicative parasitic load","%",{"$f":"IF(C27>0,(C27-C28)/C27,\"-\")","v":0.12318132743817799},{"$f":"IF(D27>0,(D27-D28)/D27,\"-\")","v":"-"},0.13591392331991725,0.13496262796163658,{"$f":"IF(G27>0,1-G28/(G27+G29),\"-\")","v":0.20740205922164112}]
["Thermal Energy Exported **",null,69908,119921,94843,103373,{"$f":"SUM(C31:F31)","v":388045},{"$f":"IF(G31>0,G31*1000/$G$24,\"-\")","v":775.40764127567741}]
["R1 value (if applicable)","R1","-","-","-","-",0.65]
[]
["Waste Disposal & Recovery","Unit","Q1","Q2","Q3","Q4","Year Total","% inputs"]
["APC Residues - produced","tonnes",2313,3397,3256,3980,{"$f":"SUM(C35:F35)","v":12946},{"$f":"IF(G35>0,G35/$G$24,\"-\")","v":2.5869235073135641E-2}]
["IBA - produced",null,22879,27293,25608,26626,102406,{"$f":"IF(G36>0,G36/$G$24,\"-\")","v":0.20463192390696186}]
["Metals recycling",null,397.57,245.84,2813.5,4480.5600000000004,{"$f":"SUM(C37:F37)","v":7937.47},1.586098233554472E-2,null,"Note From Operator: IBA off-taker Analyisis reports avaliable from Q3 2025 onwards"]
["Other",null,0,0,0,0,{"$f":"SUM(C38:F38)","v":0},"-"]
["Other",null,0,0,0,0,0,"-"]
["Other",null,0,0,0,0,0,"-"]
[]
["Raw Material Usage","Unit","Q1","Q2","Q3","Q4","Year Total","Qty./te"]
["Mains Water","ltrs",1034000,1592000,2126000,2505000,{"$f":"SUM(C43:F43)","v":7257000},{"$f":"IF(G43>0,G43/$G$24,\"-\")","v":14.501238909759412}]
["Other Water","ltrs",0,0,0,0,0,{"$f":"IF(G44>0,G44/$G$24,\"-\")","v":"-"}]
["Ammonia","kgs",0,0,0,0,0,"-"]
["Urea","kgs",165744,203420,195951,230861,{"$f":"SUM(C46:F46)","v":795976},1.5905523139637119]
["Activated Carbon","kgs",37067,31577,33612,35289,137545,0.27484813364239469]
["Lime / hydrated lime","kgs",913000,1495000,1570000,2028000,6006000,12.001438733914156]
["Fuel oil","ltrs",516925,244837,645562,302089,1709413,3.4158200783310688]
["Gas","m3",0,0,0,0,0,"-"]
["Other",null,0,0,0,0,0,"-"]
[]
["Summary ","Line/Unit","Q1","Q2","Q3","Q4","Year Total",null,"Hrs in year "]
["Availability of waste combustion by line, hrs ****",1,1502.9866669999999,1922.7966670000001,1705.4833329999999,1556,{"$f":"SUM(C54:F54)","v":6687.2666669999999},{"$f":"+G54/$I$54","v":0.76338660582191775},8760,"Change this figure to 8784 in a leap year"]
[null,2,1262.3133330000001,1614.22,1672.166667,2018.35,6567.0500000000011,{"$f":"+G55/$I$54","v":0.74966324200913259}]
[null,3,0,0,0,0,0,0]
[null,4,0,0,0,0,0,0]
[null,5,0,0,0,0,{"$f":"SUM(C58:F58)","v":0},0]
["Hours of turbine operations, hrs",1,900,0,1404,2187,4491,0.51267123287671235]
["Hours of turbine operations, hrs",2,0,0,0,0,0,0]
["Hours of heat / steam export**","hours",1528,2184,1739,2116,7567,{"$f":"IF(B61>0,G60/I54,\"n/a\")","v":0}]
["Net calorific value of waste*****","MJ/kg",8.9619999999999997,10.877000000000001,11.044,10.744,10]
["Abnormal operation events","qty.",0,1,0,0,1,{"$f":"IF(G63>0,\"yes\",\"no\")","v":"yes"}]
["Abnormal operation duration","hours",0,0.5,0,0,0.5,{"$f":"+(G64)/I54","v":5.7077625570776254E-5}]
["Permit Breaches","qty.",0,0,1,0,1,{"$f":"IF(G65>0,\"yes\",\"no\")","v":"yes"}]

{"sheet":"Operational Summary","index":3,"n_rows":55,"n_cols":11,"rows_kept":55,"cut":false,"hidden":false,"merged":[[50,2,50,8],[51,2,51,8],[52,2,52,8],[53,2,53,8],[54,2,54,8],[45,2,45,8],[46,2,46,8],[47,2,47,8],[48,2,48,8],[49,2,49,8],[29,10,42,13],[4,0,26,8],[4,10,13,13],[28,1,28,8],[29,2,29,8],[33,2,33,8],[31,2,31,8],[32,2,32,8],[34,2,34,8],[35,2,35,8],[36,2,36,8],[37,2,37,8],[38,2,38,8],[30,2,30,8],[44,2,44,8],[39,2,39,8],[40,2,40,8],[41,2,41,8],[42,2,42,8],[43,2,43,8]]}
[{"$f":"+'Cover Page'!$B$29","v":"Annual Performance Report 2025"},null,null,null,{"$f":"+'Cover Page'!$B$33","v":"Kemsley Generating Station"}]
[]
["Summary of Plant Operations and Maintenance during the reporting year",null,null,null,null,null,null,null,null,null,"Notes:"]
[]
["The plant performance (boiler and turbine availability) fell below that recorded in 2024. The thermal energy produced and steam energy delivered to D.S. Smith remains in line with expectations and previous years. Waste throughput and electrical power was impacted by the major turbine outage required between February and August 2025. The facility continues to maintain safe and environmentally compliant operations in accordance with the management system and legal requirements\n\nDetailed PPM (planned preventative maintenance) processes, in line with equipment manufacturers recommendations, are in place and managed within the companies CMMS (Computerised Maintenance Management System).\n\nA planned maintenance outage was completed in 2025. 20 USDTs (Unscheduled Down Time) were conducted throught 2025 where unanticipated shutdowns were required in order to carry out necessary unplanned plant maintainance. In addition to the routine maintenance tasks and statutory inspections, boiler tubes continue to be exchanged and coated to aid in the reduction of further unplanned downtime due to tube leaks and improve plant availability.\n\nUpgraded combustion cameras were installed to allow improved monitoring of the combustion process to ensure maximum efficency. \n\n",null,null,null,null,null,null,null,null,null,"Include summary of key operational and/or maintenance activity undertaken in the year, such as any major component upgrades and/or replacements "]
[]
[]
[]
[]
[]
[]
[]
[]
[]
[]
[]
[]
[]
[]
[]
[]
[]
[]
[]
[]
[]
[]
[]
[{"$f":"+'Cover Page'!C39","v":2025},"Plant shut-downs"]
["Start date","End date","Reason for shut-down",null,null,null,null,null,null,null,"Provide a very brief reason for plant shut-down e.g. \"Shut-down prior to major outage\"; \"Emergency shut-down due to boiler tube leak\". All emergency shut-downs must be listed (irrespective of whether or not they were required to be reported to the EA). \n\nThere is no need to include periods of hot-standby here (e.g. to clear feed chute hopper blockages).\n\nFor clinical waste incinerators which require regular shut-downs for boiler cleaning, there is no need to record these here (only those prior to major outages, and emergency shut-downs). "]
["7th Jan","11th Jan","USDT ID Fan Failure"]
["16th Jan","17th Jan","USDT Boiler Screw Failure"]
["20th Jan","22nd Jan","USDT Tube Leak"]
["8th Feb","4th Mar","Annual Outage"]
["6th Mar","7th Mar","No power on site due to UKPN regulatory maintenance on SF6 switch gear"]
["26th Mar","28th Mar","No power on site due to UKPN regulatory maintenance on SF6 switch gear"]
["14th Apr","18th Apr","USDT Tube Leak"]
["20th Apr","26th Apr","USDT Tube Leak"]
["7th May","10th May","USDT Tube Leak"]
["14th May","18th May","USDT Tube Leak"]
["5th Jun","12th Jun","USDT Tube Leak"]
["16th Jun","26th Jun","USDT Tube Leak"]
["3rd Jul","9th Jul","Turbine Blank Outage"]
["16th Jul","18th Jul","USDT ID Fan + Steam Gland Failure"]
["22nd Jul","22nd Jul","USDT Compensator Repair"]
["3rd Aug","9th Aug","Turbine Outage"]
["26th Aug","26th Aug","USDT Compensator Repair"]
["27th Aug","3rd Sept","USDT Tube Leak"]
["29th Sept","30th Sept","USDT Tube Leak"]
["1st Oct","9th Oct","USDT Tube Leak"]
["26th Oct","27th Oct","USDT APCr Screw Failure"]
["6th Nov","10th Nov","USDT Tube Leak"]
["3rd Dec","6th Dec","USDT Tube Leak"]
["10th Dec","10th Dec","USDT APCr Screw Failure"]
["22nd Dec","22nd Dec","USDT ID Fan Failure"]

{"sheet":"Perf. Form 1","index":4,"n_rows":54,"n_cols":12,"rows_kept":54,"cut":false,"hidden":false,"merged":[[35,11,45,11],[53,1,53,4],[53,7,53,8],[47,0,47,1],[49,0,49,9],[50,0,51,9],[38,0,38,9],[39,0,40,9],[43,0,43,1],[43,2,43,9],[45,0,45,1],[46,0,46,1],[36,0,36,3],[36,4,36,5],[36,7,36,8],[37,0,37,3],[37,4,37,5],[37,7,37,8],[34,0,34,3],[34,4,34,5],[34,7,34,8],[35,0,35,3],[35,4,35,5],[35,7,35,8],[31,0,31,3],[31,7,31,8],[32,0,32,3],[32,4,32,5],[32,7,32,8],[33,0,33,3],[33,4,33,5],[33,7,33,8],[23,0,23,3],[23,4,23,5],[23,6,23,7],[23,8,23,9],[25,0,25,9],[26,0,28,9],[21,0,21,1],[21,2,21,3],[21,4,21,5],[21,6,21,7],[21,8,21,9],[22,0,22,3],[22,4,22,5],[22,6,22,7],[22,8,22,9],[19,0,19,1],[19,2,19,3],[19,4,19,5],[19,6,19,7],[19,8,19,9],[20,0,20,1],[20,2,20,3],[20,4,20,5],[20,6,20,7],[20,8,20,9],[17,0,17,1],[17,2,17,3],[17,4,17,5],[17,6,17,7],[17,8,17,9],[18,0,18,1],[18,2,18,3],[18,4,18,5],[18,6,18,7],[18,8,18,9],[15,0,15,1],[15,2,15,3],[15,4,15,5],[15,6,15,7],[15,8,15,9],[16,0,16,9],[13,0,13,1],[13,2,13,3],[13,4,13,5],[13,6,13,7],[13,8,13,9],[14,0,14,3],[14,4,14,5],[14,6,14,7],[14,8,14,9],[11,0,11,1],[11,2,11,3],[11,4,11,5],[11,6,11,7],[11,8,11,9],[12,0,12,1],[12,2,12,3],[12,4,12,5],[12,6,12,7],[12,8,12,9],[9,0,9,9],[10,0,10,1],[10,2,10,3],[10,4,10,5],[10,6,10,7],[10,8,10,9],[2,0,2,4],[2,6,2,8],[3,1,3,4],[5,3,5,4],[5,6,5,7],[8,0,8,1],[8,2,8,3],[8,4,8,5],[8,6,8,7],[8,8,8,9]]}
[{"$f":"+'Cover Page'!C39","v":2025}," Annual Reporting Performance Form 1"]
[]
[{"$f":"+'Cover Page'!B31","v":"Permit EPR/JP3135DK"},null,null,null,null,"Operator: ",{"$f":"+'Cover Page'!B37","v":"enfinium K3 CHP Operations Limited"}]
["Facility:",{"$f":"+'Cover Page'!B33:I33","v":"Kemsley Generating Station"},null,null,null,"Form:","Performance 1"]
[]
["Reporting  Period from: ",null,null,"1st Jan 2025",null,"to:","31st Dec 2025"]
[]
[{"$f":"+A1","v":2025},"Annual Reporting of Waste Disposal and Recovery"]
["Waste Description",null,"Disposal Route(s)",null,"Disposal Tonnes",null,"Recovery Tonnes",null,"% / tonne of waste incinerated"]
["1) Hazardous Wastes"]
["APC Residues",null,"D09",null,13221.470000000001,null,0,null,{"$f":"IF((E11+G11)>0,(E11+G11)/'Operational Data'!$G$24, \"-\")","v":2.6419690672208458E-2}]
["IBA",null,0,null,0,null,0,null,{"$f":"IF((E12+G12)>0,(E12+G12)/'Operational Data'!$G$24, \"-\")","v":"-"}]
[null,null,null,null,null,null,null,null,{"$f":"IF((E13+G13)>0,(E13+G13)/'Operational Data'!$G$24, \"-\")","v":"-"}]
[null,null,null,null,null,null,null,null,{"$f":"IF((E14+G14)>0,(E14+G14)/'Operational Data'!$G$24, \"-\")","v":"-"}]
["Total Hazardous Waste",null,null,null,{"$f":"SUM(E11:F14)","v":13221.470000000001},null,{"$f":"SUM(G11:H14)","v":0},null,{"$f":"IF((E15+G15)>0,(E15+G15)/'Operational Data'!$G$24, \"-\")","v":2.6419690672208458E-2}]
[]
["2) Non-Hazardous Wastes"]
["IBA",null,"R11",null,0,null,96469.14,null,{"$f":"IF((E18+G18)>0,(E18+G18)/'Operational Data'!$G$24, \"-\")","v":0.1927686435936376}]
["Ferrous Metal",null,"R04",null,0,null,4581.9699999999993,null,{"$f":"IF((E19+G19)>0,(E19+G19)/'Operational Data'!$G$24, \"-\")","v":9.1558828231156561E-3}]
["Non Ferrous Metal",null,"R04",null,0,null,3355.5,null,{"$f":"IF((E20+G20)>0,(E20+G20)/'Operational Data'!$G$24, \"-\")","v":6.7050995124290627E-3}]
[null,null,null,null,null,null,null,null,{"$f":"IF((E21+G21)>0,(E21+G21)/'Operational Data'!$G$24, \"-\")","v":"-"}]
[null,null,null,null,null,null,null,null,{"$f":"IF((E22+G22)>0,(E22+G22)/'Operational Data'!$G$24, \"-\")","v":"-"}]
["Total Non-Hazardous Waste",null,null,null,{"$f":"SUM(E18:F22)","v":0},null,{"$f":"SUM(G18:H22)","v":104406.61},null,{"$f":"IF((E23+G23)>0,(E23+G23)/'Operational Data'!$G$24, \"-\")","v":0.20862962592918233}]
["TOTAL WASTE",null,null,null,{"$f":"+E23+E15","v":13221.470000000001},null,{"$f":"+G23+G15","v":104406.61},null,{"$f":"IF((E24+G24)>0,(E24+G24)/'Operational Data'!$G$24, \"-\")","v":0.23504931660139078}]
[]
["Operator’s comments :"]
[]
[]
[]
[]
[{"$f":"+A1","v":2025},"Annual Reporting of Water and Other Raw Material Usage"]
["Raw Material",null,null,null,"Usage",null,"Unit","Specific Usage",null,"Unit"]
["Mains Water",null,null,null,{"$f":"+'Operational Data'!G43/1000","v":7257},null,"m3",{"$f":"IF(E33>0,E33/'Operational Data'!$G$24,\"-\")","v":1.4501238909759412E-2},null,"m3/te"]
["Total Water",null,null,null,{"$f":"+'Operational Data'!G44+'Operational Data'!G43/1000","v":7257},null,"m3",{"$f":"IF(E34>0,E34/'Operational Data'!$G$24,\"-\")","v":1.4501238909759412E-2},null,"m3/te"]
["Urea / Ammonia",null,null,null,{"$f":"+'Operational Data'!G46","v":795976},null,"kg",{"$f":"IF(E35>0,E35/'Operational Data'!$G$24,\"-\")","v":1.5905523139637119},null,"kg/te",null,"User Note"]
["Activated Carbon",null,null,null,{"$f":"+'Operational Data'!G47","v":137545},null,"kg",{"$f":"IF(E36>0,E36/'Operational Data'!$G$24,\"-\")","v":0.27484813364239469},null,"kg/te",null,"The formula in Cell E35 was modified as enfinium Kemsley does not use ammonia and exclusively uses urea. \n\nThe exisitng formula only looked at \"Operational Data Tab\" Cell G45 Ammonia usage, while the Raw Materials in cell A35 call for Urea/Ammonia. \n\nThe Formula was updated to look at \"Operational Data Tab\" Cell G46 so that Urea ussage is accounted for."]
["Lime / hydrated lime / Sodium Bicarb.",null,null,null,{"$f":"+'Operational Data'!G48","v":6006000},null,"kg",{"$f":"IF(E37>0,E37/'Operational Data'!$G$24,\"-\")","v":12.001438733914156},null,"kg/te"]
[]
["Operator’s comments :"]
["\"Urea / Ammonia\" \"Usage\" cell formula was not adding Ammonia and Urea Raw Material usage year totals from \"Operational data\" Tab. Formula ammended as Per User note to the right"]
[]
[]
[{"$f":"+A31","v":2025},"Annual Reporting of other performance indicators "]
["Parameter",null,"Results by Line"]
[null,null,"A1","A2","A3","A4","A5",null,"Turbine 1","Turbine 2"]
["Operating hours for the year, hours",null,6687.2666666666655,6567.0499999999984,"N/A","N/A","N/A",null,4491.2999999999993,"N/A"]
["Number of periods of abnormal operation, qty.",null,1,0,"N/A","N/A","N/A",null,"N/A","N/A"]
["Cumulative hours of abnormal operation for this year, hours",null,0.5,0,"N/A","N/A","N/A",null,"N/A","N/A"]
[]
["Operator’s comments :"]
[]
[]
[]
["Signed: ","Luke Clothier",null,null,null,null,"Date:","2026-01-13"]

{"sheet":"Energy Form 1","index":5,"n_rows":29,"n_cols":8,"rows_kept":29,"cut":false,"hidden":false,"merged":[[28,1,28,4],[28,7,28,8],[15,0,15,2],[15,3,15,4],[15,6,15,8],[17,0,17,8],[18,0,24,8],[13,0,13,2],[13,3,13,4],[13,6,13,8],[14,0,14,2],[14,3,14,4],[14,6,14,8],[11,0,11,2],[11,3,11,4],[11,6,11,8],[12,0,12,2],[12,3,12,4],[12,6,12,8],[9,0,9,2],[9,3,9,4],[9,6,9,8],[10,0,10,2],[10,3,10,4],[10,6,10,8],[2,6,2,8],[4,1,4,4],[6,3,6,4],[6,6,6,7],[8,0,8,2],[8,3,8,4],[8,6,8,8]]}
[{"$f":"+'Cover Page'!C39","v":2025}," Annual Reporting of Energy Usage/Export"]
[]
[{"$f":"+'Cover Page'!B31","v":"Permit EPR/JP3135DK"},null,null,null,null,"Operator: ",{"$f":"+'Cover Page'!B37","v":"enfinium K3 CHP Operations Limited"}]
[]
["Facility:",{"$f":"+'Cover Page'!B33:I33","v":"Kemsley Generating Station"},null,null,null,"Form:","Energy 1"]
[]
["Reporting  Period from: ",null,null,{"$f":"+'Perf. Form 1'!D6:E6","v":"1st Jan 2025"},null,"to:",{"$f":"+'Perf. Form 1'!G6:H6","v":"31st Dec 2025"}]
[]
["Energy Source",null,null,"Energy Usage",null,"Unit","Specific Usage (KWh/tonne incinerated"]
["Electricity Produced",null,null,{"$f":"+'Operational Data'!G27","v":191038},null,"MWh",{"$f":"+'Operational Data'!H27","v":381.74006873950924}]
["Electricity Imported   ",null,null,{"$f":"+'Operational Data'!G29","v":17963.3},null,"MWh",{"$f":"+'Operational Data'!H29","v":35.895012389097595}]
["Electricity Exported",null,null,{"$f":"+'Operational Data'!G28","v":165654},null,"MWh",{"$f":"+'Operational Data'!H28","v":331.01670529933659}]
["Gas Oil",null,null,null,null,"tonnes",1345.85]
["Steam/hot water exported",null,null,{"$f":"+'Operational Data'!G31","v":388045},null,"GWh",{"$f":"+'Operational Data'!H31","v":775.40764127567741}]
[]
[]
[]
["Operator’s comments :"]
["Gas (fuel) oil used is for plant only. Fuel oil density used 0.82kg/l."]
[]
[]
[]
[]
[]
[]
[]
[]
[]
["Signed: ","Luke Clothier",null,null,null,null,"Date:","2026-01-13"]

{"sheet":"Permit Compliance","index":6,"n_rows":31,"n_cols":12,"rows_kept":31,"cut":false,"hidden":false,"merged":[[24,1,24,2],[25,1,25,2],[26,0,26,8],[19,7,19,8],[19,1,19,2],[19,3,19,5],[21,3,21,5],[22,3,22,5],[23,3,23,5],[24,3,24,5],[25,3,25,5],[21,1,21,2],[8,11,20,11],[28,0,28,10],[18,0,18,10],[33,1,33,3],[33,4,33,6],[33,7,33,9],[29,1,29,3],[29,4,29,6],[29,7,29,9],[30,1,30,3],[30,4,30,6],[30,7,30,9],[22,1,22,2],[23,1,23,2],[14,0,14,1],[14,2,14,4],[34,1,34,3],[34,4,34,6],[34,7,34,9],[31,1,31,3],[31,4,31,6],[31,7,31,9],[32,1,32,3],[32,4,32,6],[32,7,32,9],[14,5,14,8],[15,0,15,1],[16,2,16,4],[16,5,16,8],[15,2,15,4],[15,5,15,8],[16,0,16,1],[7,0,7,1],[7,2,7,8],[8,0,8,1],[8,2,8,4],[8,5,8,8],[35,4,35,8],[9,0,9,1],[9,2,9,4],[9,5,9,8],[10,0,10,1],[10,2,10,4],[10,5,10,8],[11,0,11,1],[11,2,11,4],[11,5,11,8],[12,0,12,1],[12,2,12,4],[12,5,12,8],[13,0,13,1],[13,2,13,4],[13,5,13,8]]}
[{"$f":"+'Cover Page'!$B$29","v":"Annual Performance Report 2025"},null,null,null,{"$f":"+'Cover Page'!$B$33","v":"Kemsley Generating Station"}]
[]
["Summary of Permit Compliance"]
[]
["Compliance with permit limits for continuously monitored pollutants"]
[]
["The plant met its emission limits as shown in the table below:"]
["Substance",null,"Percentage time compliant during operationNote 1",null,null,null,null,null,null,null,null,"Notes:"]
[null,null,"Half-hourly limit",null,null,"Daily limit",null,null,null,null,null,"Note 1: Please report to 2 decimal places, i.e. xx.xx%\n\nNote 2: Please enter into this table any permit non-compliances that the EA has given a CCS score for. Please also enter any other non-compliances which you have notified to the EA (e.g. ELV exceedances) but which have not yet been assessed by the EA. There is no need to enter any notifications which were subsequently assessed by the EA not to be permit breaches.  \n\nNote 3: Please enter information here (rather than just referencing the notifications that were sent to the EA) including where relevant the incineration line reference, pollutant and value of the measured result for any ELV exceedances.   \n\n"]
["Particulates",null,1,null,null,1]
["Oxides of nitrogen",null,1,null,null,1]
["Sulphur dioxide",null,1,null,null,1]
["Carbon monoxide",null,"100.00% 95% of 10-min averages",null,null,1]
["Total organic carbon",null,1,null,null,1]
["Hydrogen chloride",null,1,null,null,1]
["Hydrogen fluoride",null,1,null,null,1]
[null,null,"xx.xx %",null,null,"xx.xx %"]
[]
["Summary of non-compliances under the permit Note 2"]
["Date","Summary of non-compliance Note 3",null,"Reason ",null,null,"Measures taken to prevent reoccurrence","CCS score if applicable*"]
[null,null,null,null,null,null,null,"Impact","Root cause"]
["2025-09-08","Abnormal dioxins levels reported following H2 Periodic Monitoring.",null,"No Root Cause Identified",null,null,"Re-test carried out 11 days after receipt of the atypical report with levels significantly below ELV"]
[]
[]
[]
[]
["*If the Environment Agency (EA) has given a Compliance Classification Scheme (CCS) score due to a permit non-compliance it should be entered here (CCS4 = No impact; CCS3 = Minor impact; CCS2 = Significant impact; CCS1 = Major impact). If the EA has not yet assessed a non-compliance which you have notified to them, these columns should be left blank. Enter N/A if no score was given for the root cause.  "]
[]
["Summary of any complaints received and actions to taken to resolve them."]
["Date","Summary of complaint [including Line/Reference]",null,null,"Reason (including whether substantiated by the operator or the EA)",null,null,"Measures taken to prevent reoccurrence"]
["N/A","N/A",null,null,"N/A",null,null,"N/A"]

{"sheet":"Improvements","index":7,"n_rows":39,"n_cols":5,"rows_kept":39,"cut":false,"hidden":false,"merged":[[37,0,37,8],[38,0,47,8],[4,0,4,8],[5,0,13,8],[15,0,15,8],[16,0,24,8],[26,0,26,8],[27,0,35,8]]}
[{"$f":"+'Cover Page'!$B$29","v":"Annual Performance Report 2025"},null,null,null,{"$f":"+'Cover Page'!$B$33","v":"Kemsley Generating Station"}]
[]
["Summary of Plant Improvements"]
[]
["Summary of any efficiency improvements that have been completed within the year."]
["During 2025, the facility implemented a series of targeted plant improvements to maintain and enhance thermal performance, availability, and overall energy efficiency. Both boilers were upgraded with new superheaters to support improved heat recovery and steam conditions. A trial of shock pulse generators as an alternative to conventional sootblowing was completed to assess improved boiler heat-transfer performance and reduced auxiliary steam demand; following the positive outcomes of the trial, the site intends to progress this improvement into routine operation. In addition, furnace monitoring capability was improved through upgraded furnace camera systems to support optimised combustion control. Further efficiency and reliability benefits were delivered through additional Inconel overlay applied to boiler tubework, alongside improvements to boiler refractory tiling to enhance insulation integrity and reduce heat losses."]
[]
[]
[]
[]
[]
[]
[]
[]
[]
["Summary of any permit improvement conditions that have been completed within the year and the resulting environmental benefits."]
["Improvement Condition 8 closed out in 2025"]
[]
[]
[]
[]
[]
[]
[]
[]
[]
["Summary of any changes to the plant or operating techniques which required a variation to the permit and a summary of the resulting environmental impact."]
["N/A"]
[]
[]
[]
[]
[]
[]
[]
[]
[]
["Summary of any other improvements made to the plant or planned to be made and a summary of the resulting environmental benefits."]
["During 2025, a number of additional improvements were progressed to enhance plant performance and deliver wider environmental benefits. The site engaged with the Abatement Material Recirculation system OEM to review operational performance and identify optimisations to improve reagent utilisation and overall abatement effectiveness, supporting continued control of emissions and reductions in material consumption and associated waste generation. In parallel, ecological landscaping works were undertaken across site green spaces to enhance habitat quality and biodiversity value; these improvements will continue to be developed through further planned works. In support of biodiversity monitoring and evidence-led ecological management, AgriSound bioacoustic bee monitors were installed and operated throughout 2025, providing ongoing insights into pollinator activity and enabling the site to track the outcomes of habitat enhancements over time."]

{"sheet":"Public Liasion","index":8,"n_rows":30,"n_cols":5,"rows_kept":30,"cut":false,"hidden":false,"merged":[[29,0,29,8],[23,0,24,1],[23,2,24,8],[25,0,26,1],[25,2,26,8],[28,0,28,8],[17,0,18,1],[17,2,18,8],[19,0,20,1],[19,2,20,8],[21,0,22,1],[21,2,22,8],[16,0,16,1],[16,2,16,8],[5,0,5,1],[5,2,5,8],[6,0,7,1],[6,2,7,8],[8,0,9,1],[8,2,9,8],[10,0,11,1],[10,2,11,8],[12,0,13,1],[12,2,13,8],[15,0,15,8]]}
[{"$f":"+'Cover Page'!$B$29","v":"Annual Performance Report 2025"},null,null,null,{"$f":"+'Cover Page'!$B$33","v":"Kemsley Generating Station"}]
[]
["Details of Public & Stakeholder Liaison"]
[]
["Summary of events held during the reporting year."]
["Date",null,"Description"]
["Monthly",null,"Project meeting with local businesses - KFBP Forum (including DS Smith, E.On, FGS, MVV, McLaren Dalcour, Swale Local Council, Kent Council, Sea Terminals Ridham, national highways).\t\t\t\t\t\t\n\t\t\t\t\t\t"]
[]
["Quarterly ",null,"Environmental meeting with DS Smith and E.On."]
[]
[]
[]
[]
[]
[]
["List of events planned for next year"]
["Date",null,"Description"]
["Monthly",null,"Project meeting with local businesses - KFBP Forum (including DS Smith, E.On, FGS, MVV, McLaren Dalcour, Swale Local Council, Kent Council, Sea Terminals Ridham, national highways)."]
[]
["Quarterly ",null,"Environmental meeting with DS Smith and E.On."]
[]
[]
[]
[]
[]
[]
[]
[]
["If you wish to be involved in the public liaison programme, please contact enfinium Kemsley via the link below"]
["Contact – enfinium"]

{"sheet":"CO2 N2O","index":9,"n_rows":26,"n_cols":6,"rows_kept":26,"cut":false,"hidden":false,"merged":[[6,5,9,5],[22,2,22,3],[25,1,25,3],[16,2,16,3],[4,0,4,3],[9,0,9,3],[17,0,17,3],[13,0,13,3],[12,0,12,1],[8,2,8,3],[11,2,11,3],[19,2,19,3]]}
[{"$f":"+'Cover Page'!$B$29","v":"Annual Performance Report 2025"},null,{"$f":"+'Cover Page'!$B$33","v":"Kemsley Generating Station"}]
[]
["Carbon dioxide emissions and biogenic content of waste inputs",null,null,null,null,"Notes:"]
[]
["Carbon dioxide emissions (all types of plant)"]
[null,"Annual mass of carbon dioxide released","tonnes ",533482.71499999997]
[null,"Annual mass of carbon dioxide released per tonne of waste burned","t CO2 / t waste ",1.0660000000000001,null,"Note 1: All permits require operators to continuously monitor CO2 to EN14181 and flow to BS EN 16911-2 (unless otherwise agreed in writing). Operators must therefore use the results from these instruments to calculate their annual CO2 emissions. Where an operator does not have a flow meter calibrated to BS EN 16911-2, the averaged flow measurement from that year's periodic monitoring can be used instead. If the plant does not have calibrated CO2 CEMS, a suitably justified emissions factor can be used. \n\n"]
[null,"Annual mass of carbon dioxide released per MWh of energy exported","t CO2 / MWh export ",0.95]
[null,"Description of how annual carbon dioxide mass emission has been calculated. \nSee Note 1","Measured - CEMS Data"]
["Nitrous oxide emissions (only plants which use ammonia or urea to abate NOx emissions)"]
[null,"Annual mass emissions of nitrous oxide","tonnes N2O",13.638]
[null,"Description of how annual nitrous oxide mass emission has been calculated\nSee Note 2","Measured - CEMS Data",null,null,"Note 2: All permits require operators to continuously monitor N2O to EN14181 and flow to BS EN 16911-2, unless otherwise agreed in writing. Operators must therefore use the results from these instruments to calculate their annual N2O emissions. Where an operator does not have a flow meter calibrated to BS EN 16911-2, the averaged flow measurement from periodic monitoring can be used instead. If the plant does not have calibrated N2O CEMS, data from periodic monitoring or a suitably justified emissions factor can be used instead."]
["Total annual carbon dioxide + nitrous oxide emissions. \nSee Note 3. ",null,"tonnes CO2e",537547,null,"Note 3: Total annual carbon dioxide and nitrous oxide emissions reported as carbon dioxide equivalent where 1 tonne nitrous oxide is equivalent to 265 tonnes carbon dioxide."]
["Biogenic CO2 emissions (See Note 4)",null,null,null,null,"Note 4: Only plants combusting residual municipal waste, refuse derived fuel or solid recovered fuel need complete this section. "]
[null,"Percentage of total carbon dioxide emissions arising from biogenic waste","%",0.55000000000000004]
[null,"No. of measurements undertaken","Number",17]
[null,"Description of how percentage biogenic carbon dioxide emissions have been measured or calculated.\nSee Note 5","Amesa B Monitoring",null,null,"Note 5: The results from C14 sampling should be used if this is carried out at the plant (either via an installed sampler or from spot samples).  \nOtherwise, as an approximation (and in lieu of any more accurate metrics which may be developed in future), the measured or estimated biogenic fraction by net calorific value (see Note 6) can be assumed to be the same as the biogenic CO2 fraction of the total CO2 emissions from the plant. "]
["Biogenic fraction of waste feedstock (See Note 4)"]
[null,"Yearly average biogenic percentage of the waste by net calorific value (NCV)","%",0.499]
[null,"Description of how biogenic percentage (by NCV) has been calculated or estimated. \nSee Note 6","Amesa B monitoring\t",null,null,"Note 6: If C14 sampling is carried out at the plant, the methodology set out in the embedded document entitled \"Renewable Energy Association Energy Content of Fuels - Description of Method\" embedded below can be used to calculate the biogenic percentage by net calorific value. Otherwise, data from waste sampling or BIOMA software can be used; or if none of these are available, an estimated figure with justification or a figure assumed on the basis of up-to-date industry data can be used. "]
[null,"Yearly average biogenic percentage of the waste by mass","%",0.54600000000000004]
[null,"If waste sampling undertaken, no. of samples used to ascertain average biogenic percentages above","Number","N/A"]
[null,"Description of how biogenic percentage (by mass) has been calculated or estimated. \nSee Note 7","The biogenic content has been determined by an Amesa-b long term CO2 sampler which collects monthly composite samples. These are then analysed by an ISO/IEC 17025:2017 accredited testing laboratory. The analytical method adhered to by the lab is the %biogenic CO2 determination ISO-13833:2013 Annex A (AMS) using radiocarbon isotope C14.\t",null,null,"Note 7: Where available, data from waste sampling should be used; otherwise, an estimated figure with justification can be used, or a figure assumed on the basis of up-to-date industry data. "]
[]
[null,"Comments:"]
[null,"Awaiting C14 result for December 2025 due to laboratoy delays\t\t"]

{"sheet":"Residues","index":10,"n_rows":62,"n_cols":11,"rows_kept":62,"cut":false,"hidden":false,"merged":[[61,0,66,6],[57,3,57,4],[60,0,60,6],[52,0,53,1],[54,0,54,1],[55,0,55,1],[56,0,56,1],[57,0,57,1],[54,3,54,4],[55,3,55,4],[54,5,54,6],[55,5,55,6],[56,5,56,6],[57,5,57,6],[58,0,58,6],[45,0,46,1],[45,2,46,6],[47,0,48,1],[47,2,48,6],[56,3,56,4],[52,2,53,2],[53,3,53,4],[53,5,53,6],[52,3,52,6],[51,0,51,6],[4,0,25,8],[4,10,13,13],[41,0,42,1],[41,2,42,6],[43,0,44,1],[43,2,44,6],[37,0,37,6],[38,0,38,1],[38,2,38,6],[39,0,40,1],[39,2,40,6],[30,0,35,6]]}
[{"$f":"+'Cover Page'!$B$29","v":"Annual Performance Report 2025"},null,null,null,{"$f":"+'Cover Page'!$B$33","v":"Kemsley Generating Station"}]
[]
["Summary of Residue Handling for the reporting year"]
[]
["Residues generated from the incineration process during the reporting year comprised Incinerator Bottom Ash (IBA) and Air Pollution Control Residues (APCr). IBA was sampled twice per month and submitted to an approved external laboratory for analysis. In addition, both IBA and APCr were subjected to quarterly full hazard classification testing. The hazard assessment results for the reporting period demonstrated that IBA remained non-hazardous in accordance with the ESA Municipal IBA Sampling and Testing Protocol. APCr is inherently hazardous and was therefore managed and disposed of via appropriately permitted hazardous waste routes. All residue sampling and testing activities were undertaken in accordance with the requirements of the Industrial Emissions Directive and the ESA sampling and testing protocol.",null,null,null,null,null,null,null,null,null,"Include in here a summary of residue handling regimes and destinations "]
[]
[]
[]
[]
[]
[]
[]
[]
[]
[]
[]
[]
[]
[]
[]
[]
[]
[]
[]
[]
[]
[]
["Residue Quality Monitoring Requirements"]
[]
["Summary of monitoring undertaken and compliance"]
["24x Samples taken and sent for analysis in 2025\n20x Samples taken and sent for Core Hazardous Property Analysis\n3x Samples Taken and sent for Permit Compliance Analysis\n1x Sample sent for Annual Characterisation (including Permit Compliance Analysis"]
[]
[]
[]
[]
[]
[]
["Commentary on any specific events"]
["Date & Event",null,"Description"]
["November 6th 2025",null,"HP14 concentration exceedence as a result of atypical Pb levels (primarily due to batteries). Subsequent IBA Sample from 10th November below all HP cocnentration Limits"]
[]
[]
[]
[]
[]
[]
[]
[]
[]
[]
[]
["Residue Quality Monitoring Results"]
["Parameter (unit) ",null,"Limit*","Normal Operation "]
[null,null,null,"Bottom ash  ",null,"APC Residues"]
["Loss on Ignition (average %)",null,"<5%",3.8]
["Total Organic Carbon (average %)",null,"<3%",0.7]
["No. of Assessments Undertaken",null,"---",24,null,4]
["No. of Hazardous Results",null,"---",1]
["* The permit will specify a limit of either 5% loss on ignition or 3% total organic carbon. If both are measured anyway, please enter the results here, even where the limit does not apply. "]
[]
["Comments :"]
["LOI and TOC for the IBA are an average of the 24 samples taken in 2025, no samples exceeded the set limits within the Environmental Permit.\n\nAll samples were sent for analysis at a fully accredited laboratory.\t\t\t\t\n\t\t\t\t\t\t\n\t\t\t\t\t\t\n\t\t\t\t\t\t\n\t\t\t\t\t\t\n\t\t\t\t\t\t"]

{"sheet":"Water","index":11,"n_rows":24,"n_cols":9,"rows_kept":24,"cut":false,"hidden":false,"merged":[[29,0,29,2],[29,3,29,4],[26,0,26,2],[26,3,26,4],[27,0,27,2],[27,3,27,4],[28,0,28,2],[28,3,28,4],[24,0,24,2],[24,3,24,4],[25,0,25,2],[25,3,25,4],[23,0,23,8],[21,0,21,8],[22,0,22,2],[22,3,22,4],[16,0,17,1],[16,2,17,8],[18,0,19,1],[18,2,19,8],[14,0,15,8],[12,0,12,8],[13,0,13,1],[13,2,13,8],[5,0,10,8]]}
[{"$f":"+'Cover Page'!$B$29","v":"Annual Performance Report 2025"},null,null,null,{"$f":"+'Cover Page'!$B$33","v":"Kemsley Generating Station"}]
[]
["Emissions to Water"]
[]
["Summary of monitoring undertaken and compliance"]
["Water balance is achived by a attenuation pond for rainwater with a closed penstock which can emit to the Swale. Regular visual inspections to check for hydrocarbons and particulate are conducted. The penstock requires manual operation and would only be operated following heavy rainfall to prevent flooding, in which case additional inspections and pH testing would be conducted. \n\t\t\t\t\t\t\n\t\t\t\t\t\t\t\t"]
[]
[]
[]
[]
[]
[]
["Commentary on any specific events"]
["Date & Event",null,"Description"]
["No Events in 2025"]
[]
[]
[]
[]
[]
[]
["Emissions to Water / Sewer"]
["Parameter",null,null,"Monitoring Frequency",null,"Limit","Target","Max.","Average"]
["None set in any permits or consents"]

{"sheet":"Air (periodic)","index":12,"n_rows":41,"n_cols":14,"rows_kept":41,"cut":false,"hidden":false,"merged":[[14,13,15,15],[16,13,17,13],[16,14,17,14],[16,15,17,15],[19,3,19,4],[14,3,14,4],[15,3,15,4],[16,3,16,4],[17,3,17,4],[18,3,18,4],[22,3,22,4],[23,3,23,4],[24,3,24,4],[25,3,25,4],[32,3,32,4],[26,3,26,4],[27,3,27,4],[29,3,29,4],[39,0,39,12],[20,0,20,1],[21,0,21,1],[22,0,22,1],[35,3,35,4],[36,3,36,4],[34,0,34,1],[35,0,35,1],[36,0,36,1],[37,0,37,1],[25,0,25,1],[33,3,33,4],[28,3,28,4],[34,3,34,4],[20,3,20,4],[21,3,21,4],[40,0,41,12],[26,0,26,1],[27,0,27,1],[23,0,23,1],[24,0,24,1],[38,0,38,1],[28,0,28,1],[29,0,29,1],[30,0,30,1],[31,0,31,1],[32,0,32,1],[33,0,33,1],[38,3,38,4],[30,3,30,4],[31,3,31,4],[37,3,37,4],[17,0,17,1],[18,0,18,1],[19,0,19,1],[14,0,14,1],[15,0,15,1],[16,0,16,1],[13,0,13,1],[12,3,12,4],[13,3,13,4],[9,0,11,1],[9,5,9,12],[9,3,11,4],[9,2,11,2],[5,13,8,16],[9,13,12,16],[8,0,8,12],[5,0,6,12],[12,0,12,1]]}
[{"$f":"+'Cover Page'!$B$29","v":"Annual Performance Report 2025"},null,null,null,{"$f":"+'Cover Page'!$B$33","v":"Kemsley Generating Station"}]
[]
["Emissions to Air (periodically monitored)"]
[]
["Summary of monitoring undertaken, standards used and compliance",null,null,null,null,null,null,null,null,null,null,null,null,"Notes:"]
["Results were below the applicable limits where relevant and were broadly comparable with those reported for 2025, with the exception of atypical dioxin exceedances recorded at emission points A1 and A2 during the H2 periodic monitoring programme (refer to comments). All sampling and analysis were undertaken by MCERTS-certified contractors in accordance with the relevant standards and approved methods.",null,null,null,null,null,null,null,null,null,null,null,null,"Template may require adjustment for any bespoke monitoring requirements of permit - please also check that all default ELV values, reference periods and the stated oxygen reference value match those for your plant, and edit if necessary!"]
[]
[]
["Results of emissions to air that are periodically monitored - oxygen reference 11% "]
["Substance",null,"Ref. Period","Emission Limit Value",null,"Average",null,null,null,null,null,null,null,"User to add additional tables as necessary, depending on whether quarterly or bi-annual reporting is required for the compliance year"]
[null,null,null,null,null,"H1","H1","H2","H2","H2","H2","H2","H2"]
[null,null,null,null,null,"A1","A2","A1","A2","A1 (Retest 1)","A2 (Retest 1)","A1 (Retest 2)","A2    (Retest 2)"]
["Hydrogen fluoride",null,"1 hr","1 mg/m3",null,0.18,0.14000000000000001,0.11,9.4E-2,"N/A","N/A","N/A","N/A"]
["Cd and Tl and their compounds",null,"0.5-8hrs","0.02 mg/m3",null,9.7999999999999997E-4,1E-3,9.6000000000000002E-4,8.8999999999999995E-4,"N/A","N/A","N/A","N/A"]
["Hg and its compounds",null,"0.5-8hrs","0.02 mg/m3",null,1.6999999999999999E-3,1.2999999999999999E-3,3.8999999999999998E-3,1.4E-3,"N/A","N/A","N/A","N/A"]
["Sb, As, Pb, Cr, Co, Cu, Mn, Ni, V and their compounds",null,"0.5-8hrs","0.3 mg/m3",null,1.6E-2,2.8000000000000001E-2,0.01,2.1999999999999999E-2,"N/A","N/A","N/A","N/A"]
["Dioxins & Furans (I-TEQ)",null,"6-8hrs","0.06 ng/m3",null,5.4999999999999997E-3,5.3999999999999999E-2,8.1000000000000003E-2,0.14000000000000001,3.8999999999999998E-3,2.7000000000000001E-3,3.8E-3,3.7000000000000002E-3]
["PCBs (WHO-TEQ Humans / Mammals)",null,"6-8hrs","None set ng/m3",null,8.4999999999999995E-4,9.9000000000000008E-3,8.0000000000000002E-3,3.5999999999999999E-3,"N/A","N/A","N/A","N/A"]
["PCBs (WHO-TEQ Fish)",null,"6-8hrs","None set ng/m3",null,4.3999999999999999E-5,4.6000000000000001E-4,3.6000000000000002E-4,1.6000000000000001E-4,"N/A","N/A","N/A","N/A"]
["PCBs (WHO-TEQ Birds)",null,"6-8hrs","None set ng/m3",null,1.9E-3,1.4999999999999999E-2,1.2E-2,4.8999999999999998E-3,"N/A","N/A","N/A","N/A"]
["Dioxins & Furans (WHO-TEQ Humans / Mammals)",null,"6-8hrs","None set ng/m3",null,4.4999999999999997E-3,4.9000000000000002E-2,7.6999999999999999E-2,0.12,3.5999999999999999E-3,2.3999999999999998E-3,3.5000000000000001E-3,3.3E-3]
["Dioxins & Furans (WHO-TEQ Fish)",null,"6-8hrs","None set ng/m3",null,5.1999999999999998E-3,5.6000000000000001E-2,8.6999999999999994E-2,0.15,3.5999999999999999E-3,2.7000000000000001E-3,3.8999999999999998E-3,3.7000000000000002E-3]
["Dioxins & Furans (WHO-TEQ Birds)",null,"6-8hrs","None set ng/m3",null,1.4E-2,9.0999999999999998E-2,0.13,0.25,0.01,5.8999999999999999E-3,7.7000000000000002E-3,8.3000000000000001E-3]
["Anthanthrene",null,"6-8hrs","None set µg/m3",null,1.4E-3,1.5E-3,"N/A","N/A","N/A","N/A","N/A","N/A"]
["Benzo(a)anthracene",null,"6-8hrs","None set µg/m3",null,2.3999999999999998E-3,1.6999999999999999E-3,"N/A","N/A","N/A","N/A","N/A","N/A"]
["Benzo(a)pyrene",null,"6-8hrs","None set µg/m3",null,1.8E-3,1.5E-3,"N/A","N/A","N/A","N/A","N/A","N/A"]
["Benzo(b)fluoranthene",null,"6-8hrs","None set µg/m3",null,2.0999999999999999E-3,2.3E-3,"N/A","N/A","N/A","N/A","N/A","N/A"]
["Benzo(b)naptho(2,1-d) thiophene",null,"6-8hrs","None set µg/m3",null,1.4E-3,1.5E-3,"N/A","N/A","N/A","N/A","N/A","N/A"]
["Benzo(c)phenanthrene",null,"6-8hrs","None set µg/m3",null,1.4E-3,1.5E-3,"N/A","N/A","N/A","N/A","N/A","N/A"]
["Benzo(ghi)perylene",null,"6-8hrs","None set µg/m3",null,1.9E-3,3.0999999999999999E-3,"N/A","N/A","N/A","N/A","N/A","N/A"]
["Benzo(k)fluoranthene",null,"6-8hrs","None set µg/m3",null,1.4E-3,1.5E-3,"N/A","N/A","N/A","N/A","N/A","N/A"]
["Cholanthrene",null,"6-8hrs","None set µg/m3",null,1.4E-3,1.5E-3,"N/A","N/A","N/A","N/A","N/A","N/A"]
["Chrysene",null,"6-8hrs","None set µg/m3",null,3.2000000000000002E-3,3.8999999999999998E-3,"N/A","N/A","N/A","N/A","N/A","N/A"]
["Cyclopenta(cd)pyrene",null,"6-8hrs","None set µg/m3",null,6.1000000000000004E-3,2.2000000000000001E-3,"N/A","N/A","N/A","N/A","N/A","N/A"]
["Dibenzo(ai)pyrene",null,"6-8hrs","None set µg/m3",null,1.4E-3,1.5E-3,"N/A","N/A","N/A","N/A","N/A","N/A"]
["Dibenzo(ah)anthracene",null,"6-8hrs","None set µg/m3",null,1.4E-3,1.5E-3,"N/A","N/A","N/A","N/A","N/A","N/A"]
["Fluoranthene",null,"6-8hrs","None set µg/m3",null,3.5000000000000003E-2,3.3000000000000002E-2,"N/A","N/A","N/A","N/A","N/A","N/A"]
["Indeno(123-cd) pyrene",null,"6-8hrs","None set µg/m3",null,1.4E-3,1.5E-3,"N/A","N/A","N/A","N/A","N/A","N/A"]
["Naphthalene",null,"6-8hrs","None set µg/m3",null,6.8000000000000005E-2,0.12,"N/A","N/A","N/A","N/A","N/A","N/A"]
["Comments :"]
["Monitoring of specific individual polycyclic aromatic hydrocarbons (PAHs) was undertaken on an annual basis in accordance with Table S3.1 of Environmental Permit EPR/JP3135DK/V006. \n\nDuring the reporting year, a dioxins exceedance identified during the A1 and A2 Q3 periodic monitoring programme triggered the additional dioxins monitoring requirements set out within the relevant BREF protocol. Two confirmatory re-tests were completed over a one-month period, with results demonstrating consistent performance below the applicable ELV. The re-test results were submitted to the Environment Agency for review."]

{"sheet":"Air (CEMS)","index":13,"n_rows":29,"n_cols":14,"rows_kept":29,"cut":false,"hidden":false,"merged":[[5,0,8,12],[28,0,29,12],[13,0,14,0],[10,0,10,12],[11,0,12,0],[11,2,12,2],[11,1,12,1],[11,3,11,4],[11,5,11,6],[11,7,11,8],[11,9,11,10],[11,11,11,12],[14,13,15,13],[14,14,15,14],[14,15,15,15],[12,13,13,15],[26,0,26,12]]}
[{"$f":"+'Cover Page'!$B$29","v":"Annual Performance Report 2025"},null,null,null,null,null,null,null,{"$f":"+'Cover Page'!$B$33","v":"Kemsley Generating Station"}]
[]
["Emissions to Air (continuously monitored)"]
[null,null,null,null,null,null,null,null,null,null,null,null,null,"Notes:"]
["Summary of monitoring undertaken, standards used and compliance",null,null,null,null,null,null,null,null,null,null,null,null,"Template may require adjustment for any bespoke monitoring requirements of permit"]
["For 2025, the facility achieved 100% compliance with the limits set in the Environmental Permit for all continiuously monitored determinands.\n\nHCl, SO2, NOx, TOC and CO all have limits set out in the Environmental Permit; these determinands are continuously monitored by CEMS's in compliance with EN 14181. NH3, O2, CO2 and Water Vapour and are also continuously monitored by the CEMS's.\n\nAll instruments are QAL1 compliant and undergo annual checks either in the form of a QAL2 or an Annual Surveillance Test compliant with the requirements of EN 14181.",null,null,null,null,null,null,null,null,null,null,null,null,"Please check that all default ELV values match those for your plant and edit if necessary!"]
[null,null,null,null,null,null,null,null,null,null,null,null,null,"Report to 1 decimal place"]
[]
[]
[]
["Results of emissions to air that are continuously monitored (maximum and average values for each line) - oxygen reference 11%"]
["Substance","Reference Period","Emission Limit Value","A1",null,"A2",null,"A3",null,"A4",null,"A5"]
[null,null,null,"Max.","Avg.","Max.","Avg.","Max.","Avg.","Max.","Avg.","Max.","Avg."]
["Oxides of nitrogen","Daily mean","180 mg/m3 ",172.9,168.9,172.3,169.3]
[null,"½ hourly mean","400 mg/m3 ",240.6,168.9,225,169.3]
["Particulates","Daily mean","5 mg/m3",1.6,0.5,3,0.6]
[null,"½ hourly mean","30 mg/m3 ",3,0.5,20.8,0.6]
["Total Organic Carbon ","Daily mean","10 mg/m3 ",0.7,0.2,0.6,0.2]
[null,"½ hourly mean","20 mg/m3 ",3.9,0.2,4.5999999999999996,0.2]
["Hydrogen chloride ","Daily mean","8 mg/m3 ",7,3.9,7.2,4.4000000000000004]
[null,"½ hourly mean","60 mg/m3 ",12.6,3.9,11.1,4.4000000000000004]
["Sulphur dioxide","Daily mean","40 mg/m3 ",35,7.5,23.4,5.2]
[null,"½ hourly mean","200 mg/m3 ",388.5,7.7,135.9,4.8]
["Carbon monoxide ","Daily mean","50 mg/m3 ",10.8,3.9,7,2.2000000000000002]
[null,"95%ile 10-min avg *","150 mg/m3 *",64,3.9,27.7,2.2000000000000002]
[" Ammonia","Daily mean","15 mg/m3 ",3.1,0.8,0.6,0.2]
["* = delete as appropriate, depending on whether your plant has half-hourly or 10-min CO ELVs\n"]
["Comments :"]
["K3 facility operates 2 lines (2 boilers and 2 emission points) with 1 common turbine.\t\t\t\t\t\t\t\t\t\t\t\t\n\t\t\t\t\t\t\t\t\t\t\t\t"]

{"sheet":"HCl","index":14,"n_rows":79,"n_cols":17,"rows_kept":79,"cut":false,"hidden":false,"merged":[[12,16,15,18],[51,9,63,9],[66,9,78,9],[4,9,4,14],[4,1,4,3],[4,4,4,6],[48,0,51,6],[47,0,47,6],[6,9,18,9],[21,9,33,9],[36,9,48,9],[3,16,7,18],[9,16,11,18],[18,4,18,6]]}
[{"$f":"+'Cover Page'!$B$29","v":"Annual Performance Report 2025"},null,null,null,{"$f":"+'Cover Page'!$B$33","v":"Kemsley Generating Station"}]
[]
["Monitoring of Hydrogen Chloride emissions",null,null,"Whole Installation",null,null,"See  Notes in Cell Q3",null,null,{"$f":"+A3","v":"Monitoring of Hydrogen Chloride emissions"},null,null,null,"Per Combustion Line",null,null,"Notes:"]
[null,null,null,null,null,null,null,null,null,null,null,null,null,null,null,null,"User to add logic to complete Whole installation, Table A5:G18. From the data in Per Combustion Line, Table J6:O79, subject to No. of lines installed"]
[{"$f":"+'Cover Page'!C39","v":2025},"1/2 Hourly Reference Periods",null,null,"Daily Reference Periods"]
["mg/Nm3","1/2 hourly HCl ELV","Monthly mean of half-hourly averages","Highest half- hourly average","Daily HCl ELV","Monthly mean of  daily averages","Highest daily average",null,null,{"$f":"+A5","v":2025},"mg/Nm3","Monthly mean of half-hourly averages","Highest half- hourly average","Monthly mean of  daily averages","Highest daily average"]
["Jan",60,{"$f":"AVERAGE(L7,L22)","v":5.65},{"$f":"MAX(M7,M22)","v":12.61},8,{"$f":"AVERAGE(N7,N22)","v":5.68},{"$f":"MAX(O7,O22)","v":6.97},null,null,"A1","Jan",5.66,12.61,5.66,6.97]
["Feb",60,{"$f":"AVERAGE(L8,L23)","v":5.6549999999999994},{"$f":"MAX(M8,M23)","v":11.25},8,{"$f":"AVERAGE(N8,N23)","v":5.7050000000000001},{"$f":"MAX(O8,O23)","v":6.78},null,null,null,"Feb",6.06,11.25,6.04,6.78]
["Mar",60,3.915,9.73,8,3.9249999999999998,6.82,null,null,null,"Mar",3.51,9.73,3.5,5.16,null,"Whole Installation table A5:G18:"]
["Apr",60,3.6349999999999998,8.14,8,3.6399999999999997,4.3,null,null,null,"Apr",3.53,7.74,3.53,4.18,null,"Mean: for 1/2 hourly and daily periods calculate mean of values across all operational combustion lines for the month"]
["May",60,3.7149999999999999,9.8699999999999992,8,3.7149999999999999,4.4000000000000004,null,null,null,"May",3.43,7.43,3.44,4.2]
["Jun",60,4.12,8.18,8,4.12,4.42,null,null,null,"Jun",4.01,8.18,4.01,4.38]
["Jul",60,3.79,7.43,8,3.8149999999999999,4.5199999999999996,null,null,null,"Jul",3.47,6.46,3.51,4.5199999999999996,null,"Maximum: for 1/2 hourly and daily periods use the highest value across all operational combustion lines for the month"]
["Aug",60,4.5750000000000002,10.93,8,4.5600000000000005,7.19,null,null,null,"Aug",4.41,9.08,4.3600000000000003,6.08]
["Sep",60,3.9749999999999996,8.94,8,3.98,4.5,null,null,null,"Sep",3.86,8.94,3.87,4.3499999999999996]
["Oct",60,3.835,9.14,8,3.83,4.72,null,null,null,"Oct",3.49,9.14,3.48,4.13]
["Nov",60,3.4849999999999999,7.84,8,3.48,4.74,null,null,null,"Nov",2.75,6.4,2.75,3.61]
["Dec",60,3.1,8,8,3.0649999999999999,4.92,null,null,null,"Dec",2.33,4.9000000000000004,2.25,2.93]
[null,null,null,null,null,null,null,null,null,null,"Annual",{"$f":"AVERAGE(L7:L18)","v":3.875833333333333},{"$f":"MAX(M7:M18)","v":12.61},{"$f":"AVERAGE(N7:N18)","v":3.8666666666666658},{"$f":"MAX(O7:O18)","v":6.97}]
[]
[null,null,null,null,null,null,null,null,null,{"$f":"+A5","v":2025},"mg/Nm3","Monthly mean of half-hourly averages","Highest half- hourly average","Monthly mean of  daily averages","Highest daily average"]
[null,null,null,null,null,null,null,null,null,"A2","Jan",5.64,11.05,5.7,6.72]
[null,null,null,null,null,null,null,null,null,null,"Feb",5.25,7.99,5.37,5.45]
[null,null,null,null,null,null,null,null,null,null,"Mar",4.32,9.24,4.3499999999999996,6.82]
[null,null,null,null,null,null,null,null,null,null,"Apr",3.74,8.14,3.75,4.3]
[null,null,null,null,null,null,null,null,null,null,"May",4,9.8699999999999992,3.99,4.4000000000000004]
[null,null,null,null,null,null,null,null,null,null,"Jun",4.2300000000000004,6.86,4.2300000000000004,4.42]
[null,null,null,null,null,null,null,null,null,null,"Jul",4.1100000000000003,7.43,4.12,4.45]
[null,null,null,null,null,null,null,null,null,null,"Aug",4.74,10.93,4.76,7.19]
[null,null,null,null,null,null,null,null,null,null,"Sep",4.09,7.51,4.09,4.5]
[null,null,null,null,null,null,null,null,null,null,"Oct",4.18,8.08,4.18,4.72]
[null,null,null,null,null,null,null,null,null,null,"Nov",4.22,7.84,4.21,4.74]
[null,null,null,null,null,null,null,null,null,null,"Dec",3.87,8,3.88,4.92]
[null,null,null,null,null,null,null,null,null,null,"Annual",{"$f":"AVERAGE(L22:L33)","v":4.3658333333333337},{"$f":"MAX(M22:M33)","v":11.05},{"$f":"AVERAGE(N22:N33)","v":4.3858333333333333},{"$f":"MAX(O22:O33)","v":7.19}]
[]
[null,null,null,null,null,null,null,null,null,{"$f":"+A5","v":2025},"mg/Nm3","Monthly mean of half-hourly averages","Highest half- hourly average","Monthly mean of  daily averages","Highest daily average"]
[null,null,null,null,null,null,null,null,null,"A3","Jan"]
[null,null,null,null,null,null,null,null,null,null,"Feb"]
[null,null,null,null,null,null,null,null,null,null,"Mar"]
[null,null,null,null,null,null,null,null,null,null,"Apr"]
[null,null,null,null,null,null,null,null,null,null,"May"]
[null,null,null,null,null,null,null,null,null,null,"Jun"]
[null,null,null,null,null,null,null,null,null,null,"Jul"]
[null,null,null,null,null,null,null,null,null,null,"Aug"]
[null,null,null,null,null,null,null,null,null,null,"Sep"]
[null,null,null,null,null,null,null,null,null,null,"Oct"]
[null,null,null,null,null,null,null,null,null,null,"Nov"]
["Comments :",null,null,null,null,null,null,null,null,null,"Dec"]
[null,null,null,null,null,null,null,null,null,null,"Annual",{"$f":"AVERAGE(L37:L48)","v":{"$error":"#DIV/0!"}},{"$f":"MAX(M37:M48)","v":0},{"$f":"AVERAGE(N37:N48)","v":{"$error":"#DIV/0!"}},{"$f":"MAX(O37:O48)","v":0}]
[]
[null,null,null,null,null,null,null,null,null,{"$f":"+A5","v":2025},"mg/Nm3","Monthly mean of half-hourly averages","Highest half- hourly average","Monthly mean of  daily averages","Highest daily average"]
[null,null,null,null,null,null,null,null,null,"A4","Jan"]
[null,null,null,null,null,null,null,null,null,null,"Feb"]
[null,null,null,null,null,null,null,null,null,null,"Mar"]
[null,null,null,null,null,null,null,null,null,null,"Apr"]
[null,null,null,null,null,null,null,null,null,null,"May"]
[null,null,null,null,null,null,null,null,null,null,"Jun"]
[null,null,null,null,null,null,null,null,null,null,"Jul"]
[null,null,null,null,null,null,null,null,null,null,"Aug"]
[null,null,null,null,null,null,null,null,null,null,"Sep"]
[null,null,null,null,null,null,null,null,null,null,"Oct"]
[null,null,null,null,null,null,null,null,null,null,"Nov"]
[null,null,null,null,null,null,null,null,null,null,"Dec"]
[null,null,null,null,null,null,null,null,null,null,"Annual",{"$f":"AVERAGE(L52:L63)","v":{"$error":"#DIV/0!"}},{"$f":"MAX(M52:M63)","v":0},{"$f":"AVERAGE(N52:N63)","v":{"$error":"#DIV/0!"}},{"$f":"MAX(O52:O63)","v":0}]
[]
[null,null,null,null,null,null,null,null,null,{"$f":"+A5","v":2025},"mg/Nm3","Monthly mean of half-hourly averages","Highest half- hourly average","Monthly mean of  daily averages","Highest daily average"]
[null,null,null,null,null,null,null,null,null,"A5","Jan"]
[null,null,null,null,null,null,null,null,null,null,"Feb"]
[null,null,null,null,null,null,null,null,null,null,"Mar"]
[null,null,null,null,null,null,null,null,null,null,"Apr"]
[null,null,null,null,null,null,null,null,null,null,"May"]
[null,null,null,null,null,null,null,null,null,null,"Jun"]
[null,null,null,null,null,null,null,null,null,null,"Jul"]
[null,null,null,null,null,null,null,null,null,null,"Aug"]
[null,null,null,null,null,null,null,null,null,null,"Sep"]
[null,null,null,null,null,null,null,null,null,null,"Oct"]
[null,null,null,null,null,null,null,null,null,null,"Nov"]
[null,null,null,null,null,null,null,null,null,null,"Dec"]
[null,null,null,null,null,null,null,null,null,null,"Annual",{"$f":"AVERAGE(L67:L78)","v":{"$error":"#DIV/0!"}},{"$f":"MAX(M67:M78)","v":0},{"$f":"AVERAGE(N67:N78)","v":{"$error":"#DIV/0!"}},{"$f":"MAX(O67:O78)","v":0}]

{"sheet":"SO2","index":15,"n_rows":79,"n_cols":17,"rows_kept":79,"cut":false,"hidden":false,"merged":[[3,16,7,18],[9,16,11,18],[12,16,15,18],[66,9,78,9],[4,1,4,3],[4,4,4,6],[4,9,4,14],[6,9,18,9],[21,9,33,9],[36,9,48,9],[47,0,47,6],[48,0,51,6],[51,9,63,9],[18,4,18,6]]}
[{"$f":"+'Cover Page'!$B$29","v":"Annual Performance Report 2025"},null,null,null,{"$f":"+'Cover Page'!$B$33","v":"Kemsley Generating Station"}]
[]
["Monitoring of Sulphur dioxide emissions",null,null,"Whole Installation",null,null,"See  Notes in Cell Q3",null,null,{"$f":"+A3","v":"Monitoring of Sulphur dioxide emissions"},null,null,null,"Per Combustion Line",null,null,"Notes:"]
[null,null,null,null,null,null,null,null,null,null,null,null,null,null,null,null,"User to add logic to complete Whole installation, Table A5:G18. From the data in Per Combustion Line, Table J6:O79, subject to No. of lines installed"]
[{"$f":"+'Cover Page'!C39","v":2025},"1/2 Hourly Reference Periods",null,null,"Daily Reference Periods"]
["mg/Nm3","1/2 hourly SO2 ELV","Monthly mean of half-hourly averages","Highest half- hourly average","Daily SO2 ELV","Monthly mean of  daily averages","Highest daily average",null,null,{"$f":"+A5","v":2025},"mg/Nm3","Monthly mean of half-hourly averages","Highest half- hourly average","Monthly mean of  daily averages","Highest daily average"]
["Jan",200,{"$f":"AVERAGE(L7,L22)","v":5.1849999999999996},{"$f":"MAX(M7,M22)","v":49.31},40,{"$f":"AVERAGE(N7,N22)","v":5.2649999999999997},{"$f":"MAX(O7,O22)","v":14.18},null,null,"A1","Jan",6.27,41.32,6.27,14.18]
["Feb",200,{"$f":"AVERAGE(L8,L23)","v":9.75},{"$f":"MAX(M8,M23)","v":68.75},40,{"$f":"AVERAGE(N8,N23)","v":9.4450000000000003},{"$f":"MAX(O8,O23)","v":17.12},null,null,null,"Feb",12.34,68.75,11.27,17.12]
["Mar",200,9.4550000000000001,80.94,40,9.5549999999999997,35,null,null,null,"Mar",11.67,65.62,11.93,35,null,"Whole Installation table A5:G18:"]
["Apr",200,7.9,76.75,40,7.66,16.07,null,null,null,"Apr",9.4700000000000006,67.489999999999995,9.4700000000000006,16.07,null,"Mean: for 1/2 hourly and daily periods calculate mean of values across all operational combustion lines for the month"]
["May",200,7.2750000000000004,388.47,40,7.29,21.74,null,null,null,"May",8.58,388.47,8.42,21.74]
["Jun",200,4.07,43.27,40,3.9950000000000001,14.17,null,null,null,"Jun",4.6900000000000004,34.56,4.7300000000000004,13.69]
["Jul",200,4.3849999999999998,48.93,40,3.895,16.77,null,null,null,"Jul",7.47,48.93,6.7,16.2,null,"Maximum: for 1/2 hourly and daily periods use the highest value across all operational combustion lines for the month"]
["Aug",200,3.2,54.04,40,6.07,16.55,null,null,null,"Aug",5.4,54.04,5.14,16.55]
["Sep",200,3.2349999999999999,74.08,40,3.1100000000000003,9.18,null,null,null,"Sep",4.17,70.7,4.12,8.77]
["Oct",200,5.4649999999999999,126.22,40,5.46,17.829999999999998,null,null,null,"Oct",7.44,126.22,7.46,17.829999999999998]
["Nov",200,5.12,61.37,40,5.1400000000000006,16.32,null,null,null,"Nov",3.99,61.37,3.99,11.19]
["Dec",200,9.9499999999999993,135.86000000000001,40,9.83,26.89,null,null,null,"Dec",11.24,106.4,11.1,26.89]
[null,null,null,null,null,null,null,null,null,null,"Annual",{"$f":"AVERAGE(L7:L18)","v":7.7274999999999991},{"$f":"MAX(M7:M18)","v":388.47},{"$f":"AVERAGE(N7:N18)","v":7.55},{"$f":"MAX(O7:O18)","v":35}]
[]
[null,null,null,null,null,null,null,null,null,{"$f":"+A5","v":2025},"mg/Nm3","Monthly mean of half-hourly averages","Highest half- hourly average","Monthly mean of  daily averages","Highest daily average"]
[null,null,null,null,null,null,null,null,null,"A2","Jan",4.0999999999999996,49.31,4.26,9.61]
[null,null,null,null,null,null,null,null,null,null,"Feb",7.16,46.11,7.62,10.5]
[null,null,null,null,null,null,null,null,null,null,"Mar",7.24,80.94,7.18,23.4]
[null,null,null,null,null,null,null,null,null,null,"Apr",6.33,76.75,5.85,12.76]
[null,null,null,null,null,null,null,null,null,null,"May",5.97,49.47,6.16,15.16]
[null,null,null,null,null,null,null,null,null,null,"Jun",3.45,43.27,3.26,14.17]
[null,null,null,null,null,null,null,null,null,null,"Jul",1.3,38.619999999999997,1.0900000000000001,16.77]
[null,null,null,null,null,null,null,null,null,null,"Aug",1,27.54,7,6.53]
[null,null,null,null,null,null,null,null,null,null,"Sep",2.2999999999999998,74.08,2.1,9.18]
[null,null,null,null,null,null,null,null,null,null,"Oct",3.49,123.33,3.46,13.32]
[null,null,null,null,null,null,null,null,null,null,"Nov",6.25,49.84,6.29,16.32]
[null,null,null,null,null,null,null,null,null,null,"Dec",8.66,135.86000000000001,8.56,20.81]
[null,null,null,null,null,null,null,null,null,null,"Annual",{"$f":"AVERAGE(L22:L33)","v":4.770833333333333},{"$f":"MAX(M22:M33)","v":135.86000000000001},{"$f":"AVERAGE(N22:N33)","v":5.2358333333333338},{"$f":"MAX(O22:O33)","v":23.4}]
[]
[null,null,null,null,null,null,null,null,null,{"$f":"+A5","v":2025},"mg/Nm3","Monthly mean of half-hourly averages","Highest half- hourly average","Monthly mean of  daily averages","Highest daily average"]
[null,null,null,null,null,null,null,null,null,"A3","Jan"]
[null,null,null,null,null,null,null,null,null,null,"Feb"]
[null,null,null,null,null,null,null,null,null,null,"Mar"]
[null,null,null,null,null,null,null,null,null,null,"Apr"]
[null,null,null,null,null,null,null,null,null,null,"May"]
[null,null,null,null,null,null,null,null,null,null,"Jun"]
[null,null,null,null,null,null,null,null,null,null,"Jul"]
[null,null,null,null,null,null,null,null,null,null,"Aug"]
[null,null,null,null,null,null,null,null,null,null,"Sep"]
[null,null,null,null,null,null,null,null,null,null,"Oct"]
[null,null,null,null,null,null,null,null,null,null,"Nov"]
["Comments :",null,null,null,null,null,null,null,null,null,"Dec"]
["Highest half hourly elevated SO2 levels of 388.47 in May confirmed as AO",null,null,null,null,null,null,null,null,null,"Annual",{"$f":"AVERAGE(L37:L48)","v":{"$error":"#DIV/0!"}},{"$f":"MAX(M37:M48)","v":0},{"$f":"AVERAGE(N37:N48)","v":{"$error":"#DIV/0!"}},{"$f":"MAX(O37:O48)","v":0}]
[]
[null,null,null,null,null,null,null,null,null,{"$f":"+A5","v":2025},"mg/Nm3","Monthly mean of half-hourly averages","Highest half- hourly average","Monthly mean of  daily averages","Highest daily average"]
[null,null,null,null,null,null,null,null,null,"A4","Jan"]
[null,null,null,null,null,null,null,null,null,null,"Feb"]
[null,null,null,null,null,null,null,null,null,null,"Mar"]
[null,null,null,null,null,null,null,null,null,null,"Apr"]
[null,null,null,null,null,null,null,null,null,null,"May"]
[null,null,null,null,null,null,null,null,null,null,"Jun"]
[null,null,null,null,null,null,null,null,null,null,"Jul"]
[null,null,null,null,null,null,null,null,null,null,"Aug"]
[null,null,null,null,null,null,null,null,null,null,"Sep"]
[null,null,null,null,null,null,null,null,null,null,"Oct"]
[null,null,null,null,null,null,null,null,null,null,"Nov"]
[null,null,null,null,null,null,null,null,null,null,"Dec"]
[null,null,null,null,null,null,null,null,null,null,"Annual",{"$f":"AVERAGE(L52:L63)","v":{"$error":"#DIV/0!"}},{"$f":"MAX(M52:M63)","v":0},{"$f":"AVERAGE(N52:N63)","v":{"$error":"#DIV/0!"}},{"$f":"MAX(O52:O63)","v":0}]
[]
[null,null,null,null,null,null,null,null,null,{"$f":"+A5","v":2025},"mg/Nm3","Monthly mean of half-hourly averages","Highest half- hourly average","Monthly mean of  daily averages","Highest daily average"]
[null,null,null,null,null,null,null,null,null,"A5","Jan"]
[null,null,null,null,null,null,null,null,null,null,"Feb"]
[null,null,null,null,null,null,null,null,null,null,"Mar"]
[null,null,null,null,null,null,null,null,null,null,"Apr"]
[null,null,null,null,null,null,null,null,null,null,"May"]
[null,null,null,null,null,null,null,null,null,null,"Jun"]
[null,null,null,null,null,null,null,null,null,null,"Jul"]
[null,null,null,null,null,null,null,null,null,null,"Aug"]
[null,null,null,null,null,null,null,null,null,null,"Sep"]
[null,null,null,null,null,null,null,null,null,null,"Oct"]
[null,null,null,null,null,null,null,null,null,null,"Nov"]
[null,null,null,null,null,null,null,null,null,null,"Dec"]
[null,null,null,null,null,null,null,null,null,null,"Annual",{"$f":"AVERAGE(L67:L78)","v":{"$error":"#DIV/0!"}},{"$f":"MAX(M67:M78)","v":0},{"$f":"AVERAGE(N67:N78)","v":{"$error":"#DIV/0!"}},{"$f":"MAX(O67:O78)","v":0}]

{"sheet":"NOx","index":16,"n_rows":79,"n_cols":17,"rows_kept":79,"cut":false,"hidden":false,"merged":[[3,16,7,18],[9,16,11,18],[12,16,15,18],[66,9,78,9],[4,1,4,3],[4,4,4,6],[4,9,4,14],[6,9,18,9],[21,9,33,9],[36,9,48,9],[47,0,47,6],[48,0,51,6],[51,9,63,9],[18,4,18,6]]}
[{"$f":"+'Cover Page'!$B$29","v":"Annual Performance Report 2025"},null,null,null,{"$f":"+'Cover Page'!$B$33","v":"Kemsley Generating Station"}]
[]
["Monitoring of Oxides of Nitrogen emissions",null,null,"Whole Installation",null,null,"See  Notes in Cell Q3",null,null,{"$f":"+A3","v":"Monitoring of Oxides of Nitrogen emissions"},null,null,null,"Per Combustion Line",null,null,"Notes:"]
[null,null,null,null,null,null,null,null,null,null,null,null,null,null,null,null,"User to add logic to complete Whole installation, Table A5:G18. From the data in Per Combustion Line, Table J6:O79, subject to No. of lines installed"]
[{"$f":"+'Cover Page'!C39","v":2025},"1/2 Hourly Reference Periods",null,null,"Daily Reference Periods"]
["mg/Nm3","1/2 hourly NOx ELV","Monthly mean of half-hourly averages","Highest half- hourly average","Daily NOx ELV","Monthly mean of  daily averages","Highest daily average",null,null,{"$f":"+A5","v":2025},"mg/Nm3","Monthly mean of half-hourly averages","Highest half- hourly average","Monthly mean of  daily averages","Highest daily average"]
["Jan",400,{"$f":"AVERAGE(L7,L22)","v":169.47},{"$f":"MAX(M7,M22)","v":203.27},180,{"$f":"AVERAGE(N7,N22)","v":169.49},{"$f":"MAX(O7,O22)","v":170.37},null,null,"A1","Jan",169.37,203.27,169.37,170.23]
["Feb",400,{"$f":"AVERAGE(L8,L23)","v":169.55500000000001},{"$f":"MAX(M8,M23)","v":186.13},180,{"$f":"AVERAGE(N8,N23)","v":169.60000000000002},{"$f":"MAX(O8,O23)","v":169.71},null,null,null,"Feb",169.59,181.24,169.62,169.71]
["Mar",400,168.56,227.05,180,168.7,172.9,null,null,null,"Mar",168.35,227.05,168.63,172.9,null,"Whole Installation table A5:G18:"]
["Apr",400,169.6,205.28,180,169.565,170.08,null,null,null,"Apr",169.56,205.28,169.56,170.04,null,"Mean: for 1/2 hourly and daily periods calculate mean of values across all operational combustion lines for the month"]
["May",400,169.13499999999999,240.59,180,169.2,171.39,null,null,null,"May",169.39,240.59,169.4,171.39]
["Jun",400,167.91,211.35,180,167.86,170.72,null,null,null,"Jun",166.41,211.35,166.34,170.36]
["Jul",400,167.43,215.32,180,167.21,170.84,null,null,null,"Jul",166.94,215.32,166.68,170.84,null,"Maximum: for 1/2 hourly and daily periods use the highest value across all operational combustion lines for the month"]
["Aug",400,169.57999999999998,198.41,180,169.58,170.32,null,null,null,"Aug",169.6,197.94,169.61,170.32]
["Sep",400,169.51999999999998,213.26,180,169.505,170.43,null,null,null,"Sep",169.64,191.24,169.64,170.06]
["Oct",400,169.69,225,180,169.68,172.33,null,null,null,"Oct",169.53,190.07,169.51,170.01]
["Nov",400,169.5,200.79,180,169.51999999999998,171.25,null,null,null,"Nov",169.45,200.79,169.45,171.25]
["Dec",400,169.48500000000001,200.67,180,169.49,171.28,null,null,null,"Dec",169.3,191.86,169.32,169.99]
[null,null,null,null,null,null,null,null,null,null,"Annual",{"$f":"AVERAGE(L7:L18)","v":168.92749999999998},{"$f":"MAX(M7:M18)","v":240.59},{"$f":"AVERAGE(N7:N18)","v":168.92749999999998},{"$f":"MAX(O7:O18)","v":172.9}]
[]
[null,null,null,null,null,null,null,null,null,{"$f":"+A5","v":2025},"mg/Nm3","Monthly mean of half-hourly averages","Highest half- hourly average","Monthly mean of  daily averages","Highest daily average"]
[null,null,null,null,null,null,null,null,null,"A2","Jan",169.57,189.88,169.61,170.37]
[null,null,null,null,null,null,null,null,null,null,"Feb",169.52,186.13,169.58,169.59]
[null,null,null,null,null,null,null,null,null,null,"Mar",168.77,207.69,168.77,171.79]
[null,null,null,null,null,null,null,null,null,null,"Apr",169.64,183.22,169.57,170.08]
[null,null,null,null,null,null,null,null,null,null,"May",168.88,221.88,169,170.6]
[null,null,null,null,null,null,null,null,null,null,"Jun",169.41,191.16,169.38,170.72]
[null,null,null,null,null,null,null,null,null,null,"Jul",167.92,186.36,167.74,170.41]
[null,null,null,null,null,null,null,null,null,null,"Aug",169.56,198.41,169.55,169.93]
[null,null,null,null,null,null,null,null,null,null,"Sep",169.4,213.26,169.37,170.43]
[null,null,null,null,null,null,null,null,null,null,"Oct",169.85,225,169.85,172.33]
[null,null,null,null,null,null,null,null,null,null,"Nov",169.55,195.3,169.59,170.04]
[null,null,null,null,null,null,null,null,null,null,"Dec",169.67,200.67,169.66,171.28]
[null,null,null,null,null,null,null,null,null,null,"Annual",{"$f":"AVERAGE(L22:L33)","v":169.31166666666667},{"$f":"MAX(M22:M33)","v":225},{"$f":"AVERAGE(N22:N33)","v":169.30583333333334},{"$f":"MAX(O22:O33)","v":172.33}]
[]
[null,null,null,null,null,null,null,null,null,{"$f":"+A5","v":2025},"mg/Nm3","Monthly mean of half-hourly averages","Highest half- hourly average","Monthly mean of  daily averages","Highest daily average"]
[null,null,null,null,null,null,null,null,null,"A3","Jan"]
[null,null,null,null,null,null,null,null,null,null,"Feb"]
[null,null,null,null,null,null,null,null,null,null,"Mar"]
[null,null,null,null,null,null,null,null,null,null,"Apr"]
[null,null,null,null,null,null,null,null,null,null,"May"]
[null,null,null,null,null,null,null,null,null,null,"Jun"]
[null,null,null,null,null,null,null,null,null,null,"Jul"]
[null,null,null,null,null,null,null,null,null,null,"Aug"]
[null,null,null,null,null,null,null,null,null,null,"Sep"]
[null,null,null,null,null,null,null,null,null,null,"Oct"]
[null,null,null,null,null,null,null,null,null,null,"Nov"]
["Comments :",null,null,null,null,null,null,null,null,null,"Dec"]
[null,null,null,null,null,null,null,null,null,null,"Annual",{"$f":"AVERAGE(L37:L48)","v":{"$error":"#DIV/0!"}},{"$f":"MAX(M37:M48)","v":0},{"$f":"AVERAGE(N37:N48)","v":{"$error":"#DIV/0!"}},{"$f":"MAX(O37:O48)","v":0}]
[]
[null,null,null,null,null,null,null,null,null,{"$f":"+A5","v":2025},"mg/Nm3","Monthly mean of half-hourly averages","Highest half- hourly average","Monthly mean of  daily averages","Highest daily average"]
[null,null,null,null,null,null,null,null,null,"A4","Jan"]
[null,null,null,null,null,null,null,null,null,null,"Feb"]
[null,null,null,null,null,null,null,null,null,null,"Mar"]
[null,null,null,null,null,null,null,null,null,null,"Apr"]
[null,null,null,null,null,null,null,null,null,null,"May"]
[null,null,null,null,null,null,null,null,null,null,"Jun"]
[null,null,null,null,null,null,null,null,null,null,"Jul"]
[null,null,null,null,null,null,null,null,null,null,"Aug"]
[null,null,null,null,null,null,null,null,null,null,"Sep"]
[null,null,null,null,null,null,null,null,null,null,"Oct"]
[null,null,null,null,null,null,null,null,null,null,"Nov"]
[null,null,null,null,null,null,null,null,null,null,"Dec"]
[null,null,null,null,null,null,null,null,null,null,"Annual",{"$f":"AVERAGE(L52:L63)","v":{"$error":"#DIV/0!"}},{"$f":"MAX(M52:M63)","v":0},{"$f":"AVERAGE(N52:N63)","v":{"$error":"#DIV/0!"}},{"$f":"MAX(O52:O63)","v":0}]
[]
[null,null,null,null,null,null,null,null,null,{"$f":"+A5","v":2025},"mg/Nm3","Monthly mean of half-hourly averages","Highest half- hourly average","Monthly mean of  daily averages","Highest daily average"]
[null,null,null,null,null,null,null,null,null,"A5","Jan"]
[null,null,null,null,null,null,null,null,null,null,"Feb"]
[null,null,null,null,null,null,null,null,null,null,"Mar"]
[null,null,null,null,null,null,null,null,null,null,"Apr"]
[null,null,null,null,null,null,null,null,null,null,"May"]
[null,null,null,null,null,null,null,null,null,null,"Jun"]
[null,null,null,null,null,null,null,null,null,null,"Jul"]
[null,null,null,null,null,null,null,null,null,null,"Aug"]
[null,null,null,null,null,null,null,null,null,null,"Sep"]
[null,null,null,null,null,null,null,null,null,null,"Oct"]
[null,null,null,null,null,null,null,null,null,null,"Nov"]
[null,null,null,null,null,null,null,null,null,null,"Dec"]
[null,null,null,null,null,null,null,null,null,null,"Annual",{"$f":"AVERAGE(L67:L78)","v":{"$error":"#DIV/0!"}},{"$f":"MAX(M67:M78)","v":0},{"$f":"AVERAGE(N67:N78)","v":{"$error":"#DIV/0!"}},{"$f":"MAX(O67:O78)","v":0}]

{"sheet":"TOC","index":17,"n_rows":79,"n_cols":17,"rows_kept":79,"cut":false,"hidden":false,"merged":[[3,16,7,18],[9,16,11,18],[12,16,15,18],[66,9,78,9],[4,1,4,3],[4,4,4,6],[4,9,4,14],[6,9,18,9],[21,9,33,9],[36,9,48,9],[47,0,47,6],[48,0,51,6],[51,9,63,9]]}
[{"$f":"+'Cover Page'!$B$29","v":"Annual Performance Report 2025"},null,null,null,{"$f":"+'Cover Page'!$B$33","v":"Kemsley Generating Station"}]
[]
["Monitoring of Total organic carbon emissions",null,null,"Whole Installation",null,null,"See  Notes in Cell Q3",null,null,{"$f":"+A3","v":"Monitoring of Total organic carbon emissions"},null,null,null,"Per Combustion Line",null,null,"Notes:"]
[null,null,null,null,null,null,null,null,null,null,null,null,null,null,null,null,"User to add logic to complete Whole installation, Table A5:G18. From the data in Per Combustion Line, Table J6:O79, subject to No. of lines installed"]
[{"$f":"+'Cover Page'!C39","v":2025},"1/2 Hourly Reference Periods",null,null,"Daily Reference Periods"]
["mg/Nm3","1/2 hourly TOC ELV","Monthly mean of half-hourly averages","Highest half- hourly average","Daily TOC ELV","Monthly mean of  daily averages","Highest daily average",null,null,{"$f":"+A5","v":2025},"mg/Nm3","Monthly mean of half-hourly averages","Highest half- hourly average","Monthly mean of  daily averages","Highest daily average"]
["Jan",20,{"$f":"AVERAGE(L7,L22)","v":0.2},{"$f":"MAX(M7,M22)","v":1.79},10,{"$f":"AVERAGE(N7,N22)","v":0.2},{"$f":"MAX(O7,O22)","v":0.67},null,null,"A1","Jan",0.21,1.79,0.21,0.67]
["Feb",20,{"$f":"AVERAGE(L8,L23)","v":0.14000000000000001},{"$f":"MAX(M8,M23)","v":1.1100000000000001},10,{"$f":"AVERAGE(N8,N23)","v":0.14499999999999999},{"$f":"MAX(O8,O23)","v":0.26},null,null,null,"Feb",0.18,1.1100000000000001,0.18,0.26]
["Mar",20,0.215,3.08,10,0.20500000000000002,0.3,null,null,null,"Mar",0.22,2.04,0.21,0.3,null,"Whole Installation table A5:G18:"]
["Apr",20,0.21500000000000002,2.9,10,0.20500000000000002,0.26,null,null,null,"Apr",0.2,2.9,0.2,0.25,null,"Mean: for 1/2 hourly and daily periods calculate mean of values across all operational combustion lines for the month"]
["May",20,0.20500000000000002,2.64,10,0.20500000000000002,0.28000000000000003,null,null,null,"May",0.2,2.4500000000000002,0.2,0.26]
["Jun",20,0.26500000000000001,2.92,10,0.255,0.74,null,null,null,"Jun",0.26,2.82,0.26,0.74]
["Jul",20,0.245,2.34,10,0.23499999999999999,0.45,null,null,null,"Jul",0.19,2.34,0.18,0.26,null,"Maximum: for 1/2 hourly and daily periods use the highest value across all operational combustion lines for the month"]
["Aug",20,0.30499999999999999,3.13,10,0.3,0.56000000000000005,null,null,null,"Aug",0.32,3.13,0.31,0.56000000000000005]
["Sep",20,0.19500000000000001,1.9,10,0.19,0.3,null,null,null,"Sep",0.18,1.84,0.18,0.3]
["Oct",20,0.21000000000000002,4.5599999999999996,10,0.20500000000000002,0.3,null,null,null,"Oct",0.23,1.28,0.22,0.3]
["Nov",20,0.20500000000000002,2.95,10,0.20500000000000002,0.33,null,null,null,"Nov",0.22,2.95,0.22,0.33]
["Dec",20,0.24,3.91,10,0.23499999999999999,0.73,null,null,null,"Dec",0.31,3.91,0.3,0.73]
[null,null,null,null,null,null,null,null,null,null,"Annual",{"$f":"AVERAGE(L7:L18)","v":0.22666666666666668},{"$f":"MAX(M7:M18)","v":3.91},{"$f":"AVERAGE(N7:N18)","v":0.2225},{"$f":"MAX(O7:O18)","v":0.74}]
[]
[null,null,null,null,null,null,null,null,null,{"$f":"+A5","v":2025},"mg/Nm3","Monthly mean of half-hourly averages","Highest half- hourly average","Monthly mean of  daily averages","Highest daily average"]
[null,null,null,null,null,null,null,null,null,"A2","Jan",0.19,1.37,0.19,0.56999999999999995]
[null,null,null,null,null,null,null,null,null,null,"Feb",0.1,0.48,0.11,0.11]
[null,null,null,null,null,null,null,null,null,null,"Mar",0.21,3.08,0.2,0.3]
[null,null,null,null,null,null,null,null,null,null,"Apr",0.23,2.33,0.21,0.26]
[null,null,null,null,null,null,null,null,null,null,"May",0.21,2.64,0.21,0.28000000000000003]
[null,null,null,null,null,null,null,null,null,null,"Jun",0.27,2.92,0.25,0.43]
[null,null,null,null,null,null,null,null,null,null,"Jul",0.3,2.02,0.28999999999999998,0.45]
[null,null,null,null,null,null,null,null,null,null,"Aug",0.28999999999999998,2.77,0.28999999999999998,0.45]
[null,null,null,null,null,null,null,null,null,null,"Sep",0.21,1.9,0.2,0.26]
[null,null,null,null,null,null,null,null,null,null,"Oct",0.19,4.5599999999999996,0.19,0.27]
[null,null,null,null,null,null,null,null,null,null,"Nov",0.19,2.42,0.19,0.3]
[null,null,null,null,null,null,null,null,null,null,"Dec",0.17,1.62,0.17,0.25]
[null,null,null,null,null,null,null,null,null,null,"Annual",{"$f":"AVERAGE(L22:L33)","v":0.21333333333333335},{"$f":"MAX(M22:M33)","v":4.5599999999999996},{"$f":"AVERAGE(N22:N33)","v":0.20833333333333334},{"$f":"MAX(O22:O33)","v":0.56999999999999995}]
[]
[null,null,null,null,null,null,null,null,null,{"$f":"+A5","v":2025},"mg/Nm3","Monthly mean of half-hourly averages","Highest half- hourly average","Monthly mean of  daily averages","Highest daily average"]
[null,null,null,null,null,null,null,null,null,"A3","Jan"]
[null,null,null,null,null,null,null,null,null,null,"Feb"]
[null,null,null,null,null,null,null,null,null,null,"Mar"]
[null,null,null,null,null,null,null,null,null,null,"Apr"]
[null,null,null,null,null,null,null,null,null,null,"May"]
[null,null,null,null,null,null,null,null,null,null,"Jun"]
[null,null,null,null,null,null,null,null,null,null,"Jul"]
[null,null,null,null,null,null,null,null,null,null,"Aug"]
[null,null,null,null,null,null,null,null,null,null,"Sep"]
[null,null,null,null,null,null,null,null,null,null,"Oct"]
[null,null,null,null,null,null,null,null,null,null,"Nov"]
["Comments :",null,null,null,null,null,null,null,null,null,"Dec"]
[null,null,null,null,null,null,null,null,null,null,"Annual",{"$f":"AVERAGE(L37:L48)","v":{"$error":"#DIV/0!"}},{"$f":"MAX(M37:M48)","v":0},{"$f":"AVERAGE(N37:N48)","v":{"$error":"#DIV/0!"}},{"$f":"MAX(O37:O48)","v":0}]
[]
[null,null,null,null,null,null,null,null,null,{"$f":"+A5","v":2025},"mg/Nm3","Monthly mean of half-hourly averages","Highest half- hourly average","Monthly mean of  daily averages","Highest daily average"]
[null,null,null,null,null,null,null,null,null,"A4","Jan"]
[null,null,null,null,null,null,null,null,null,null,"Feb"]
[null,null,null,null,null,null,null,null,null,null,"Mar"]
[null,null,null,null,null,null,null,null,null,null,"Apr"]
[null,null,null,null,null,null,null,null,null,null,"May"]
[null,null,null,null,null,null,null,null,null,null,"Jun"]
[null,null,null,null,null,null,null,null,null,null,"Jul"]
[null,null,null,null,null,null,null,null,null,null,"Aug"]
[null,null,null,null,null,null,null,null,null,null,"Sep"]
[null,null,null,null,null,null,null,null,null,null,"Oct"]
[null,null,null,null,null,null,null,null,null,null,"Nov"]
[null,null,null,null,null,null,null,null,null,null,"Dec"]
[null,null,null,null,null,null,null,null,null,null,"Annual",{"$f":"AVERAGE(L52:L63)","v":{"$error":"#DIV/0!"}},{"$f":"MAX(M52:M63)","v":0},{"$f":"AVERAGE(N52:N63)","v":{"$error":"#DIV/0!"}},{"$f":"MAX(O52:O63)","v":0}]
[]
[null,null,null,null,null,null,null,null,null,{"$f":"+A5","v":2025},"mg/Nm3","Monthly mean of half-hourly averages","Highest half- hourly average","Monthly mean of  daily averages","Highest daily average"]
[null,null,null,null,null,null,null,null,null,"A5","Jan"]
[null,null,null,null,null,null,null,null,null,null,"Feb"]
[null,null,null,null,null,null,null,null,null,null,"Mar"]
[null,null,null,null,null,null,null,null,null,null,"Apr"]
[null,null,null,null,null,null,null,null,null,null,"May"]
[null,null,null,null,null,null,null,null,null,null,"Jun"]
[null,null,null,null,null,null,null,null,null,null,"Jul"]
[null,null,null,null,null,null,null,null,null,null,"Aug"]
[null,null,null,null,null,null,null,null,null,null,"Sep"]
[null,null,null,null,null,null,null,null,null,null,"Oct"]
[null,null,null,null,null,null,null,null,null,null,"Nov"]
[null,null,null,null,null,null,null,null,null,null,"Dec"]
[null,null,null,null,null,null,null,null,null,null,"Annual",{"$f":"AVERAGE(L67:L78)","v":{"$error":"#DIV/0!"}},{"$f":"MAX(M67:M78)","v":0},{"$f":"AVERAGE(N67:N78)","v":{"$error":"#DIV/0!"}},{"$f":"MAX(O67:O78)","v":0}]

{"sheet":"Particulates","index":18,"n_rows":79,"n_cols":17,"rows_kept":79,"cut":false,"hidden":false,"merged":[[4,16,8,18],[10,16,12,18],[13,16,16,18],[66,9,78,9],[4,1,4,3],[4,4,4,6],[4,9,4,14],[6,9,18,9],[21,9,33,9],[36,9,48,9],[47,0,47,6],[48,0,51,6],[51,9,63,9],[18,4,18,6]]}
[{"$f":"+'Cover Page'!$B$29","v":"Annual Performance Report 2025"},null,null,null,{"$f":"+'Cover Page'!$B$33","v":"Kemsley Generating Station"}]
[]
["Monitoring of Particulate matter emissions",null,null,"Whole Installation",null,null,"See  Notes in Cell Q3",null,null,{"$f":"+A3","v":"Monitoring of Particulate matter emissions"},null,null,null,"Per Combustion Line",null,null,"Notes:"]
[]
[{"$f":"+'Cover Page'!C39","v":2025},"1/2 Hourly Reference Periods",null,null,"Daily Reference Periods",null,null,null,null,null,null,null,null,null,null,null,"User to add logic to complete Whole installation, Table A5:G18. From the data in Per Combustion Line, Table J6:O79, subject to No. of lines installed"]
["mg/Nm3","1/2 hourly PM ELV","Monthly mean of half-hourly averages","Highest half- hourly average","Daily PM ELV","Monthly mean of  daily averages","Highest daily average",null,null,{"$f":"+A5","v":2025},"mg/Nm3","Monthly mean of half-hourly averages","Highest half- hourly average","Monthly mean of  daily averages","Highest daily average"]
["Jan",30,{"$f":"AVERAGE(L7,L22)","v":8.4999999999999992E-2},{"$f":"MAX(M7,M22)","v":0.4},5,{"$f":"AVERAGE(N7,N22)","v":8.4999999999999992E-2},{"$f":"AVERAGE(O7,O22)","v":9.5000000000000001E-2},null,null,"A1","Jan",0.08,0.23,0.08,0.09]
["Feb",30,{"$f":"AVERAGE(L8,L23)","v":8.4999999999999992E-2},{"$f":"MAX(M8,M23)","v":0.13},5,{"$f":"AVERAGE(N8,N23)","v":8.4999999999999992E-2},{"$f":"AVERAGE(O8,O23)","v":0.09},null,null,null,"Feb",0.08,0.13,0.08,0.09]
["Mar",30,0.24,3.72,5,0.21500000000000002,1.28,null,null,null,"Mar",0.21,1.94,0.17,0.56000000000000005]
["Apr",30,0.22999999999999998,0.55000000000000004,5,0.23499999999999999,0.33499999999999996,null,null,null,"Apr",0.25,0.55000000000000004,0.25,0.36,null,"Whole Installation table A5:G18:"]
["May",30,0.39500000000000002,1.29,5,0.4,0.66500000000000004,null,null,null,"May",0.48,1.29,0.49,0.8,null,"Mean: for 1/2 hourly and daily periods calculate mean of values across all operational combustion lines for the month"]
["Jun",30,0.45999999999999996,1.19,5,0.45499999999999996,0.64999999999999991,null,null,null,"Jun",0.5,1.19,0.49,0.7]
["Jul",30,0.51,2.04,5,0.53500000000000003,0.87999999999999989,null,null,null,"Jul",0.6,2.04,0.63,0.94]
["Aug",30,0.56499999999999995,1.87,5,0.57000000000000006,0.92500000000000004,null,null,null,"Aug",0.5,1.69,0.52,1.03,null,"Maximum: for 1/2 hourly and daily periods use the highest value across all operational combustion lines for the month"]
["Sep",30,0.73,4.17,5,0.745,1.5550000000000002,null,null,null,"Sep",0.64,1.64,0.65,0.97]
["Oct",30,0.67500000000000004,1.94,5,0.67999999999999994,1.1200000000000001,null,null,null,"Oct",0.49,1.81,0.5,0.89]
["Nov",30,1.02,20.76,5,1.01,1.2650000000000001,null,null,null,"Nov",0.77,1.33,0.77,0.92]
["Dec",30,1.1399999999999999,7.48,5,1.165,2.3049999999999997,null,null,null,"Dec",0.82,2.98,0.85,1.58]
[null,null,null,null,null,null,null,null,null,null,"Annual",{"$f":"AVERAGE(L7:L18)","v":0.45166666666666666},{"$f":"MAX(M7:M18)","v":2.98},{"$f":"AVERAGE(N7:N18)","v":0.45666666666666661},{"$f":"MAX(O7:O18)","v":1.58}]
[]
[null,null,null,null,null,null,null,null,null,{"$f":"+A5","v":2025},"mg/Nm3","Monthly mean of half-hourly averages","Highest half- hourly average","Monthly mean of  daily averages","Highest daily average"]
[null,null,null,null,null,null,null,null,null,"A2","Jan",0.09,0.4,0.09,0.1]
[null,null,null,null,null,null,null,null,null,null,"Feb",0.09,0.1,0.09,0.09]
[null,null,null,null,null,null,null,null,null,null,"Mar",0.27,3.72,0.26,2]
[null,null,null,null,null,null,null,null,null,null,"Apr",0.21,0.43,0.22,0.31]
[null,null,null,null,null,null,null,null,null,null,"May",0.31,0.79,0.31,0.53]
[null,null,null,null,null,null,null,null,null,null,"Jun",0.42,0.93,0.42,0.6]
[null,null,null,null,null,null,null,null,null,null,"Jul",0.42,1.17,0.44,0.82]
[null,null,null,null,null,null,null,null,null,null,"Aug",0.63,1.87,0.62,0.82]
[null,null,null,null,null,null,null,null,null,null,"Sep",0.82,4.17,0.84,2.14]
[null,null,null,null,null,null,null,null,null,null,"Oct",0.86,1.94,0.86,1.35]
[null,null,null,null,null,null,null,null,null,null,"Nov",1.27,20.76,1.25,1.61]
[null,null,null,null,null,null,null,null,null,null,"Dec",1.46,7.48,1.48,3.03]
[null,null,null,null,null,null,null,null,null,null,"Annual",{"$f":"AVERAGE(L22:L33)","v":0.57083333333333341},{"$f":"MAX(M22:M33)","v":20.76},{"$f":"AVERAGE(N22:N33)","v":0.57333333333333325},{"$f":"MAX(O22:O33)","v":3.03}]
[]
[null,null,null,null,null,null,null,null,null,{"$f":"+A5","v":2025},"mg/Nm3","Monthly mean of half-hourly averages","Highest half- hourly average","Monthly mean of  daily averages","Highest daily average"]
[null,null,null,null,null,null,null,null,null,"A3","Jan"]
[null,null,null,null,null,null,null,null,null,null,"Feb"]
[null,null,null,null,null,null,null,null,null,null,"Mar"]
[null,null,null,null,null,null,null,null,null,null,"Apr"]
[null,null,null,null,null,null,null,null,null,null,"May"]
[null,null,null,null,null,null,null,null,null,null,"Jun"]
[null,null,null,null,null,null,null,null,null,null,"Jul"]
[null,null,null,null,null,null,null,null,null,null,"Aug"]
[null,null,null,null,null,null,null,null,null,null,"Sep"]
[null,null,null,null,null,null,null,null,null,null,"Oct"]
[null,null,null,null,null,null,null,null,null,null,"Nov"]
["Comments :",null,null,null,null,null,null,null,null,null,"Dec"]
[null,null,null,null,null,null,null,null,null,null,"Annual",{"$f":"AVERAGE(L37:L48)","v":{"$error":"#DIV/0!"}},{"$f":"MAX(M37:M48)","v":0},{"$f":"AVERAGE(N37:N48)","v":{"$error":"#DIV/0!"}},{"$f":"MAX(O37:O48)","v":0}]
[]
[null,null,null,null,null,null,null,null,null,{"$f":"+A5","v":2025},"mg/Nm3","Monthly mean of half-hourly averages","Highest half- hourly average","Monthly mean of  daily averages","Highest daily average"]
[null,null,null,null,null,null,null,null,null,"A4","Jan"]
[null,null,null,null,null,null,null,null,null,null,"Feb"]
[null,null,null,null,null,null,null,null,null,null,"Mar"]
[null,null,null,null,null,null,null,null,null,null,"Apr"]
[null,null,null,null,null,null,null,null,null,null,"May"]
[null,null,null,null,null,null,null,null,null,null,"Jun"]
[null,null,null,null,null,null,null,null,null,null,"Jul"]
[null,null,null,null,null,null,null,null,null,null,"Aug"]
[null,null,null,null,null,null,null,null,null,null,"Sep"]
[null,null,null,null,null,null,null,null,null,null,"Oct"]
[null,null,null,null,null,null,null,null,null,null,"Nov"]
[null,null,null,null,null,null,null,null,null,null,"Dec"]
[null,null,null,null,null,null,null,null,null,null,"Annual",{"$f":"AVERAGE(L52:L63)","v":{"$error":"#DIV/0!"}},{"$f":"MAX(M52:M63)","v":0},{"$f":"AVERAGE(N52:N63)","v":{"$error":"#DIV/0!"}},{"$f":"MAX(O52:O63)","v":0}]
[]
[null,null,null,null,null,null,null,null,null,{"$f":"+A5","v":2025},"mg/Nm3","Monthly mean of half-hourly averages","Highest half- hourly average","Monthly mean of  daily averages","Highest daily average"]
[null,null,null,null,null,null,null,null,null,"A5","Jan"]
[null,null,null,null,null,null,null,null,null,null,"Feb"]
[null,null,null,null,null,null,null,null,null,null,"Mar"]
[null,null,null,null,null,null,null,null,null,null,"Apr"]
[null,null,null,null,null,null,null,null,null,null,"May"]
[null,null,null,null,null,null,null,null,null,null,"Jun"]
[null,null,null,null,null,null,null,null,null,null,"Jul"]
[null,null,null,null,null,null,null,null,null,null,"Aug"]
[null,null,null,null,null,null,null,null,null,null,"Sep"]
[null,null,null,null,null,null,null,null,null,null,"Oct"]
[null,null,null,null,null,null,null,null,null,null,"Nov"]
[null,null,null,null,null,null,null,null,null,null,"Dec"]
[null,null,null,null,null,null,null,null,null,null,"Annual",{"$f":"AVERAGE(L67:L78)","v":{"$error":"#DIV/0!"}},{"$f":"MAX(M67:M78)","v":0},{"$f":"AVERAGE(N67:N78)","v":{"$error":"#DIV/0!"}},{"$f":"MAX(O67:O78)","v":0}]

{"sheet":"CO 0.5 hourly","index":19,"n_rows":82,"n_cols":17,"rows_kept":82,"cut":false,"hidden":false,"merged":[[4,0,5,6],[6,16,10,18],[12,16,14,18],[15,16,18,18],[69,9,81,9],[7,1,7,3],[7,4,7,6],[7,9,7,14],[9,9,21,9],[24,9,36,9],[39,9,51,9],[50,0,50,6],[51,0,54,6],[54,9,66,9]]}
[{"$f":"+'Cover Page'!$B$29","v":"Annual Performance Report 2025"},null,null,null,{"$f":"+'Cover Page'!$B$33","v":"Kemsley Generating Station"}]
[]
["Monitoring of Carbon Monoxide (half hourly)",null,null,"Whole Installation",null,null,"See  Notes in Cell Q3",null,null,{"$f":"+A3","v":"Monitoring of Carbon Monoxide (half hourly)"},null,null,null,"Per Combustion Line",null,null,"Notes:"]
[]
["Please complete this tab for your plant if you have 1/2 hourly CO ELVs; otherwise, leave it blank and complete the CO 95% 10 min tab"]
[]
[null,null,null,null,null,null,null,null,null,null,null,null,null,null,null,null,"User to add logic to complete Whole installation, Table A5:G18. From the data in Per Combustion Line, Table J6:O79, subject to No. of lines installed"]
[{"$f":"+'Cover Page'!C39","v":2025},"1/2 Hourly Reference Periods",null,null,"Daily Reference Periods"]
["mg/Nm3","1/2 hourly CO ELV","Monthly mean of half-hourly averages","Highest half- hourly average","Daily CO ELV","Monthly mean of  daily averages","Highest daily average",null,null,{"$f":"+A8","v":2025},"mg/Nm3","Monthly mean of half-hourly averages","Highest half- hourly average","Monthly mean of  daily averages","Highest daily average"]
["Jan",100,null,null,50,null,null,null,null,"A1","Jan"]
["Feb",{"$f":"+B10","v":100},null,null,{"$f":"+E10","v":50},null,null,null,null,null,"Feb"]
["Mar",{"$f":"+B11","v":100},null,null,{"$f":"+E11","v":50},null,null,null,null,null,"Mar",null,null,null,null,null,"Whole Installation table A5:G18:"]
["Apr",100,null,null,50,null,null,null,null,null,"Apr",null,null,null,null,null,"Mean: for 1/2 hourly and daily periods calculate mean of values across all operational combustion lines for the month"]
["May",100,null,null,50,null,null,null,null,null,"May"]
["Jun",100,null,null,50,null,null,null,null,null,"Jun"]
["Jul",100,null,null,50,null,null,null,null,null,"Jul",null,null,null,null,null,"Maximum: for 1/2 hourly and daily periods use the highest value across all operational combustion lines for the month"]
["Aug",100,null,null,50,null,null,null,null,null,"Aug"]
["Sep",100,null,null,50,null,null,null,null,null,"Sep"]
["Oct",100,null,null,50,null,null,null,null,null,"Oct"]
["Nov",100,null,null,50,null,null,null,null,null,"Nov"]
["Dec",100,null,null,50,null,null,null,null,null,"Dec"]
[null,null,null,null,null,null,null,null,null,null,"Annual",{"$f":"AVERAGE(L10:L21)","v":{"$error":"#DIV/0!"}},{"$f":"MAX(M10:M21)","v":0},{"$f":"AVERAGE(N10:N21)","v":{"$error":"#DIV/0!"}},{"$f":"MAX(O10:O21)","v":0}]
[]
[null,null,null,null,null,null,null,null,null,{"$f":"+A8","v":2025},"mg/Nm3","Monthly mean of half-hourly averages","Highest half- hourly average","Monthly mean of  daily averages","Highest daily average"]
[null,null,null,null,null,null,null,null,null,"A2","Jan"]
[null,null,null,null,null,null,null,null,null,null,"Feb"]
[null,null,null,null,null,null,null,null,null,null,"Mar"]
[null,null,null,null,null,null,null,null,null,null,"Apr"]
[null,null,null,null,null,null,null,null,null,null,"May"]
[null,null,null,null,null,null,null,null,null,null,"Jun"]
[null,null,null,null,null,null,null,null,null,null,"Jul"]
[null,null,null,null,null,null,null,null,null,null,"Aug"]
[null,null,null,null,null,null,null,null,null,null,"Sep"]
[null,null,null,null,null,null,null,null,null,null,"Oct"]
[null,null,null,null,null,null,null,null,null,null,"Nov"]
[null,null,null,null,null,null,null,null,null,null,"Dec"]
[null,null,null,null,null,null,null,null,null,null,"Annual",{"$f":"AVERAGE(L25:L36)","v":{"$error":"#DIV/0!"}},{"$f":"MAX(M25:M36)","v":0},{"$f":"AVERAGE(N25:N36)","v":{"$error":"#DIV/0!"}},{"$f":"MAX(O25:O36)","v":0}]
[]
[null,null,null,null,null,null,null,null,null,{"$f":"+A8","v":2025},"mg/Nm3","Monthly mean of half-hourly averages","Highest half- hourly average","Monthly mean of  daily averages","Highest daily average"]
[null,null,null,null,null,null,null,null,null,"A3","Jan"]
[null,null,null,null,null,null,null,null,null,null,"Feb"]
[null,null,null,null,null,null,null,null,null,null,"Mar"]
[null,null,null,null,null,null,null,null,null,null,"Apr"]
[null,null,null,null,null,null,null,null,null,null,"May"]
[null,null,null,null,null,null,null,null,null,null,"Jun"]
[null,null,null,null,null,null,null,null,null,null,"Jul"]
[null,null,null,null,null,null,null,null,null,null,"Aug"]
[null,null,null,null,null,null,null,null,null,null,"Sep"]
[null,null,null,null,null,null,null,null,null,null,"Oct"]
[null,null,null,null,null,null,null,null,null,null,"Nov"]
["Comments :",null,null,null,null,null,null,null,null,null,"Dec"]
[null,null,null,null,null,null,null,null,null,null,"Annual",{"$f":"AVERAGE(L40:L51)","v":{"$error":"#DIV/0!"}},{"$f":"MAX(M40:M51)","v":0},{"$f":"AVERAGE(N40:N51)","v":{"$error":"#DIV/0!"}},{"$f":"MAX(O40:O51)","v":0}]
[]
[null,null,null,null,null,null,null,null,null,{"$f":"+A8","v":2025},"mg/Nm3","Monthly mean of half-hourly averages","Highest half- hourly average","Monthly mean of  daily averages","Highest daily average"]
[null,null,null,null,null,null,null,null,null,"A4","Jan"]
[null,null,null,null,null,null,null,null,null,null,"Feb"]
[null,null,null,null,null,null,null,null,null,null,"Mar"]
[null,null,null,null,null,null,null,null,null,null,"Apr"]
[null,null,null,null,null,null,null,null,null,null,"May"]
[null,null,null,null,null,null,null,null,null,null,"Jun"]
[null,null,null,null,null,null,null,null,null,null,"Jul"]
[null,null,null,null,null,null,null,null,null,null,"Aug"]
[null,null,null,null,null,null,null,null,null,null,"Sep"]
[null,null,null,null,null,null,null,null,null,null,"Oct"]
[null,null,null,null,null,null,null,null,null,null,"Nov"]
[null,null,null,null,null,null,null,null,null,null,"Dec"]
[null,null,null,null,null,null,null,null,null,null,"Annual",{"$f":"AVERAGE(L55:L66)","v":{"$error":"#DIV/0!"}},{"$f":"MAX(M55:M66)","v":0},{"$f":"AVERAGE(N55:N66)","v":{"$error":"#DIV/0!"}},{"$f":"MAX(O55:O66)","v":0}]
[]
[null,null,null,null,null,null,null,null,null,{"$f":"+A8","v":2025},"mg/Nm3","Monthly mean of half-hourly averages","Highest half- hourly average","Monthly mean of  daily averages","Highest daily average"]
[null,null,null,null,null,null,null,null,null,"A5","Jan"]
[null,null,null,null,null,null,null,null,null,null,"Feb"]
[null,null,null,null,null,null,null,null,null,null,"Mar"]
[null,null,null,null,null,null,null,null,null,null,"Apr"]
[null,null,null,null,null,null,null,null,null,null,"May"]
[null,null,null,null,null,null,null,null,null,null,"Jun"]
[null,null,null,null,null,null,null,null,null,null,"Jul"]
[null,null,null,null,null,null,null,null,null,null,"Aug"]
[null,null,null,null,null,null,null,null,null,null,"Sep"]
[null,null,null,null,null,null,null,null,null,null,"Oct"]
[null,null,null,null,null,null,null,null,null,null,"Nov"]
[null,null,null,null,null,null,null,null,null,null,"Dec"]
[null,null,null,null,null,null,null,null,null,null,"Annual",{"$f":"AVERAGE(L70:L81)","v":{"$error":"#DIV/0!"}},{"$f":"MAX(M70:M81)","v":0},{"$f":"AVERAGE(N70:N81)","v":{"$error":"#DIV/0!"}},{"$f":"MAX(O70:O81)","v":0}]

{"sheet":"CO 95% 10 min","index":20,"n_rows":82,"n_cols":19,"rows_kept":82,"cut":false,"hidden":false,"merged":[[4,0,5,7],[6,18,10,20],[12,18,14,20],[15,18,18,20],[69,10,81,10],[7,1,7,4],[7,5,7,7],[7,10,7,16],[9,10,21,10],[24,10,36,10],[39,10,51,10],[50,0,50,7],[51,0,54,7],[54,10,66,10]]}
[{"$f":"+'Cover Page'!$B$29","v":"Annual Performance Report 2025"},null,null,null,{"$f":"+'Cover Page'!$B$33","v":"Kemsley Generating Station"}]
[]
["Monitoring of Carbon Monoxide (10-minute avg)",null,null,null,"Whole Installation",null,null,"See  Notes in Cell S3",null,{"$f":"+A3","v":"Monitoring of Carbon Monoxide (10-minute avg)"},null,null,null,null,"Per Combustion Line",null,"Notes:",null,"Notes:"]
[]
["Please complete this tab for your plant if you have 10-minute average CO ELVs; otherwise, leave it blank and complete the CO 0.5 hourly tab"]
[]
[null,null,null,null,null,null,null,null,null,null,null,null,null,null,null,null,null,null,"User to add logic to complete Whole installation, Table A5:H18. From the data in Per Combustion Line, Table K6:Q79, subject to No. of lines installed"]
[{"$f":"+'Cover Page'!C39","v":2025},"10-minute Reference Periods",null,null,null,"Daily Reference Periods"]
["mg/Nm3","95%ile 10-min avg CO ELV","Highest daily 95%ile 10-min average","Monthly mean of 10-min averages","Highest 10-min average","Daily CO ELV","Monthly mean of  daily averages","Highest daily average",null,null,{"$f":"+A8","v":2025},"mg/Nm3","Highest daily 95%ile 10-min average","Monthly mean of 10-min averages","Highest 10-min average","Monthly mean of  daily averages","Highest daily average"]
["Jan",150,{"$f":"MAX(M10,M25)","v":6.48},{"$f":"AVERAGE(N10,N25)","v":2.7549999999999999},{"$f":"MAX(O10,O25)","v":123.02},50,{"$f":"AVERAGE(P10,P25)","v":2.76},{"$f":"MAX(Q10,Q25)","v":4.8},null,null,"A1","Jan",6.48,3.47,123.02,3.47,4.8]
["Feb",{"$f":"+B10","v":150},{"$f":"MAX(M11,M26)","v":6.12},{"$f":"AVERAGE(N11,N26)","v":2.59},{"$f":"MAX(O11,O26)","v":69.67},{"$f":"+F10","v":50},{"$f":"AVERAGE(P11,P26)","v":2.625},{"$f":"MAX(Q11,Q26)","v":3.84},null,null,null,"Feb",6.12,3.26,47.9,3.25,3.84]
["Mar",{"$f":"+B11","v":150},11.02,2.87,243.61,{"$f":"+F11","v":50},2.7850000000000001,4.84,null,null,null,"Mar",11.02,3.53,107.05,3.45,4.84,null,"Whole Installation table A5:H18:"]
["Apr",150,20.98,2.9249999999999998,260.27,50,2.915,5.2,null,null,null,"Apr",20.98,3.8,260.27,3.8,5.2,null,"Mean: for 10-min and daily periods use average of all operational combustion lines."]
["May",150,17.52,2.8649999999999998,222.96,50,2.84,5.56,null,null,null,"May",17.52,3.76,171.91,3.76,5.56]
["Jun",150,12.55,2.8849999999999998,214.38,50,2.855,5.38,null,null,null,"Jun",12.55,3.6,214.38,3.52,5.38]
["Jul",150,8.25,2.5,241.32,50,2.4550000000000001,5.5,null,null,null,"Jul",8.06,3.2,241.32,3.12,5.5,null,"Maximum: for 10-min and daily periods use the highest of all operational combustion lines in any month."]
["Aug",150,25.66,3.0049999999999999,198.58,50,3.01,8.43,null,null,null,"Aug",25.66,4.0999999999999996,198.58,4.13,8.43]
["Sep",150,27.14,3.1500000000000004,213.54,50,3.16,7.14,null,null,null,"Sep",27.14,3.85,187.57,3.88,7.14]
["Oct",150,27.71,3.5300000000000002,698.79,50,3.5449999999999999,7.05,null,null,null,"Oct",24.44,4.1900000000000004,121.39,4.22,6.42]
["Nov",150,21.07,3.6,295.94,50,3.5949999999999998,7.17,null,null,null,"Nov",21.07,4.46,295.94,4.46,7.17]
["Dec",150,64.05,3.88,515.76,50,3.9299999999999997,10.76,null,null,null,"Dec",64.05,5.54,515.76,5.64,10.76]
[null,null,null,null,null,null,null,null,null,null,null,"Annual",{"$f":"MAX(M10:M21)","v":64.05},{"$f":"AVERAGE(N10:N21)","v":3.8966666666666665},{"$f":"MAX(O10:O21)","v":515.76},{"$f":"AVERAGE(P10:P21)","v":3.8916666666666671},{"$f":"MAX(Q10:Q21)","v":10.76}]
[]
[null,null,null,null,null,null,null,null,null,null,{"$f":"+A8","v":2025},"mg/Nm3","Highest daily 95%ile 10-min average","Monthly mean of 10-min averages","Highest 10-min average","Monthly mean of  daily averages","Highest daily average"]
[null,null,null,null,null,null,null,null,null,null,"A2","Jan",5.15,2.04,85.96,2.0499999999999998,2.93]
[null,null,null,null,null,null,null,null,null,null,null,"Feb",2,1.92,69.67,2,2.06]
[null,null,null,null,null,null,null,null,null,null,null,"Mar",5.85,2.21,243.61,2.12,4.51]
[null,null,null,null,null,null,null,null,null,null,null,"Apr",6.27,2.0499999999999998,127.27,2.0299999999999998,3.15]
[null,null,null,null,null,null,null,null,null,null,null,"May",5.64,1.97,222.96,1.92,2.73]
[null,null,null,null,null,null,null,null,null,null,null,"Jun",11.45,2.17,176.95,2.19,4.78]
[null,null,null,null,null,null,null,null,null,null,null,"Jul",8.25,1.8,106.76,1.79,3.14]
[null,null,null,null,null,null,null,null,null,null,null,"Aug",15.7,1.91,158.82,1.89,3.38]
[null,null,null,null,null,null,null,null,null,null,null,"Sep",13.86,2.4500000000000002,213.54,2.44,5.64]
[null,null,null,null,null,null,null,null,null,null,null,"Oct",27.71,2.87,698.79,2.87,7.05]
[null,null,null,null,null,null,null,null,null,null,null,"Nov",11.44,2.74,251.95,2.73,4.51]
[null,null,null,null,null,null,null,null,null,null,null,"Dec",9.65,2.2200000000000002,222.96,2.2200000000000002,4.8]
[null,null,null,null,null,null,null,null,null,null,null,"Annual",{"$f":"MAX(M25:M36)","v":27.71},{"$f":"AVERAGE(N25:N36)","v":2.1958333333333333},{"$f":"MAX(O25:O36)","v":698.79},{"$f":"AVERAGE(P25:P36)","v":2.1875},{"$f":"MAX(Q25:Q36)","v":7.05}]
[]
[null,null,null,null,null,null,null,null,null,null,{"$f":"+A8","v":2025},"mg/Nm3","Highest daily 95%ile 10-min average","Monthly mean of 10-min averages","Highest 10-min average","Monthly mean of  daily averages","Highest daily average"]
[null,null,null,null,null,null,null,null,null,null,"A3","Jan"]
[null,null,null,null,null,null,null,null,null,null,null,"Feb"]
[null,null,null,null,null,null,null,null,null,null,null,"Mar"]
[null,null,null,null,null,null,null,null,null,null,null,"Apr"]
[null,null,null,null,null,null,null,null,null,null,null,"May"]
[null,null,null,null,null,null,null,null,null,null,null,"Jun"]
[null,null,null,null,null,null,null,null,null,null,null,"Jul"]
[null,null,null,null,null,null,null,null,null,null,null,"Aug"]
[null,null,null,null,null,null,null,null,null,null,null,"Sep"]
[null,null,null,null,null,null,null,null,null,null,null,"Oct"]
[null,null,null,null,null,null,null,null,null,null,null,"Nov"]
["Comments :",null,null,null,null,null,null,null,null,null,null,"Dec"]
["Environment Agency explanatory note: The 10-minute average ELV is based on the “95th percentile”. In this case this means that 95% of the 10 minute averages in the relevant 24-hour period (i.e. 137) must be below 150 mg/Nm3, and 5% (i.e. 7) are allowed to be any value above 150 mg/Nm3. Whilst we expect operators to minimise CO emissions at all times, it is perfectly acceptable for the value of the maximum 10-minute average to be above 150 mg/Nm3, provided the 95th percentile ELV has been met for that period. ",null,null,null,null,null,null,null,null,null,null,"Annual",{"$f":"AVERAGE(M40:M51)","v":{"$error":"#DIV/0!"}},null,{"$f":"MAX(O40:O51)","v":0},{"$f":"AVERAGE(P40:P51)","v":{"$error":"#DIV/0!"}},{"$f":"MAX(Q40:Q51)","v":0}]
[]
[null,null,null,null,null,null,null,null,null,null,{"$f":"+A8","v":2025},"mg/Nm3","Highest daily 95%ile 10-min average","Monthly mean of 10-min averages","Highest 10-min average","Monthly mean of  daily averages","Highest daily average"]
[null,null,null,null,null,null,null,null,null,null,"A4","Jan"]
[null,null,null,null,null,null,null,null,null,null,null,"Feb"]
[null,null,null,null,null,null,null,null,null,null,null,"Mar"]
[null,null,null,null,null,null,null,null,null,null,null,"Apr"]
[null,null,null,null,null,null,null,null,null,null,null,"May"]
[null,null,null,null,null,null,null,null,null,null,null,"Jun"]
[null,null,null,null,null,null,null,null,null,null,null,"Jul"]
[null,null,null,null,null,null,null,null,null,null,null,"Aug"]
[null,null,null,null,null,null,null,null,null,null,null,"Sep"]
[null,null,null,null,null,null,null,null,null,null,null,"Oct"]
[null,null,null,null,null,null,null,null,null,null,null,"Nov"]
[null,null,null,null,null,null,null,null,null,null,null,"Dec"]
[null,null,null,null,null,null,null,null,null,null,null,"Annual",{"$f":"AVERAGE(M55:M66)","v":{"$error":"#DIV/0!"}},null,{"$f":"MAX(O55:O66)","v":0},{"$f":"AVERAGE(P55:P66)","v":{"$error":"#DIV/0!"}},{"$f":"MAX(Q55:Q66)","v":0}]
[]
[null,null,null,null,null,null,null,null,null,null,{"$f":"+A8","v":2025},"mg/Nm3","95%ile 10-min avg maximum","Monthly CO 10-min avg mean","10-min avg maximum","Monthly daily mean","Monthly daily maximum"]
[null,null,null,null,null,null,null,null,null,null,"A5","Jan"]
[null,null,null,null,null,null,null,null,null,null,null,"Feb"]
[null,null,null,null,null,null,null,null,null,null,null,"Mar"]
[null,null,null,null,null,null,null,null,null,null,null,"Apr"]
[null,null,null,null,null,null,null,null,null,null,null,"May"]
[null,null,null,null,null,null,null,null,null,null,null,"Jun"]
[null,null,null,null,null,null,null,null,null,null,null,"Jul"]
[null,null,null,null,null,null,null,null,null,null,null,"Aug"]
[null,null,null,null,null,null,null,null,null,null,null,"Sep"]
[null,null,null,null,null,null,null,null,null,null,null,"Oct"]
[null,null,null,null,null,null,null,null,null,null,null,"Nov"]
[null,null,null,null,null,null,null,null,null,null,null,"Dec"]
[null,null,null,null,null,null,null,null,null,null,null,"Annual",{"$f":"AVERAGE(M70:M81)","v":{"$error":"#DIV/0!"}},null,{"$f":"MAX(O70:O81)","v":0},{"$f":"AVERAGE(P70:P81)","v":{"$error":"#DIV/0!"}},{"$f":"MAX(Q70:Q81)","v":0}]

{"sheet":"NH3","index":21,"n_rows":79,"n_cols":17,"rows_kept":79,"cut":false,"hidden":false,"merged":[[3,16,7,18],[9,16,11,18],[12,16,15,18],[66,9,78,9],[4,1,4,3],[4,4,4,6],[4,9,4,14],[6,9,18,9],[21,9,33,9],[36,9,48,9],[47,0,47,6],[48,0,51,6],[51,9,63,9],[18,4,18,6]]}
[{"$f":"+'Cover Page'!$B$29","v":"Annual Performance Report 2025"},null,null,null,{"$f":"+'Cover Page'!$B$33","v":"Kemsley Generating Station"}]
[]
["Monitoring of Ammnonia emissions ",null,null,"Whole Installation",null,null,"See  Notes in Cell Q3",null,null,{"$f":"+A3","v":"Monitoring of Ammnonia emissions "},null,null,null,"Per Combustion Line",null,null,"Notes:"]
[null,null,null,null,null,null,null,null,null,null,null,null,null,null,null,null,"User to add logic to complete Whole installation, Table A5:G18. From the data in Per Combustion Line, Table J6:O79, subject to No. of lines installed"]
[{"$f":"+'Cover Page'!C39","v":2025},"1/2 Hourly Reference Periods",null,null,"Daily Reference Periods"]
["mg/Nm3","1/2 hourly NH3 ELV","Monthly mean of half-hourly averages","Highest half- hourly average","Daily NH3 ELV","Monthly mean of  daily averages","Highest daily average",null,null,{"$f":"+A5","v":2025},"mg/Nm3","Monthly mean of half-hourly averages","Highest half- hourly average","Monthly mean of  daily averages","Highest daily average"]
["Jan","None",{"$f":"AVERAGE(L7,L22)","v":0.375},{"$f":"MAX(M7,M22)","v":2.35},15,{"$f":"AVERAGE(N7,N22)","v":0.37},{"$f":"MAX(O7,O22)","v":1.3},null,null,"A1","Jan",0.64,2.35,0.64,1.3]
["Feb",{"$f":"+B7","v":"None"},{"$f":"AVERAGE(L8,L23)","v":0.30499999999999999},{"$f":"MAX(M8,M23)","v":1.66},15,{"$f":"AVERAGE(N8,N23)","v":0.28499999999999998},{"$f":"MAX(O8,O23)","v":0.72},null,null,null,"Feb",0.52,1.66,0.49,0.72]
["Mar",{"$f":"+B8","v":"None"},0.54,5.86,15,0.48499999999999999,1.68,null,null,null,"Mar",0.94,5.86,0.85,1.68,null,"Whole Installation table A5:G18:"]
["Apr","None",0.32500000000000001,3.23,15,0.31,0.99,null,null,null,"Apr",0.49,3.23,0.49,0.99,null,"Mean: for 1/2 hourly and daily periods calculate mean of values across all operational combustion lines for the month"]
["May","None",0.35499999999999998,2.2799999999999998,15,0.35499999999999998,1.35,null,null,null,"May",0.59,2.2799999999999998,0.59,1.35]
["Jun","None",0.36499999999999999,4.53,15,0.35499999999999998,1.34,null,null,null,"Jun",0.56999999999999995,4.53,0.57999999999999996,1.34]
["Jul","None",0.52,6.58,15,0.53500000000000003,3.08,null,null,null,"Jul",0.87,6.58,0.9,3.08,null,"Maximum: for 1/2 hourly and daily periods use the highest value across all operational combustion lines for the month"]
["Aug","None",0.5,22.01,15,0.51500000000000001,1.74,null,null,null,"Aug",0.87,22.01,0.9,1.74]
["Sep","None",0.58499999999999996,2.95,15,0.59499999999999997,1.39,null,null,null,"Sep",1,2.95,1.02,1.39]
["Oct","None",0.82499999999999996,4.08,15,0.83499999999999996,1.82,null,null,null,"Oct",1.42,4.08,1.44,1.82]
["Nov","None",0.73,3.52,15,0.72500000000000009,1.64,null,null,null,"Nov",1.1000000000000001,3.52,1.1000000000000001,1.64]
["Dec","None",0.64500000000000002,2.85,15,0.61499999999999999,1.4,null,null,null,"Dec",0.99,2.85,0.93,1.4]
[null,null,null,null,null,null,null,null,null,null,"Annual",{"$f":"AVERAGE(L7:L18)","v":0.83333333333333337},{"$f":"MAX(M7:M18)","v":22.01},{"$f":"AVERAGE(N7:N18)","v":0.82750000000000001},{"$f":"MAX(O7:O18)","v":3.08}]
[]
[null,null,null,null,null,null,null,null,null,{"$f":"+A5","v":2025},"mg/Nm3","Monthly mean of half-hourly averages","Highest half- hourly average","Monthly mean of  daily averages","Highest daily average"]
[null,null,null,null,null,null,null,null,null,"A2","Jan",0.11,1.36,0.1,0.19]
[null,null,null,null,null,null,null,null,null,null,"Feb",0.09,0.15,0.08,0.09]
[null,null,null,null,null,null,null,null,null,null,"Mar",0.14000000000000001,3.64,0.12,0.43]
[null,null,null,null,null,null,null,null,null,null,"Apr",0.16,1.79,0.13,0.42]
[null,null,null,null,null,null,null,null,null,null,"May",0.12,0.49,0.12,0.23]
[null,null,null,null,null,null,null,null,null,null,"Jun",0.16,3.96,0.13,0.44]
[null,null,null,null,null,null,null,null,null,null,"Jul",0.17,1.03,0.17,0.35]
[null,null,null,null,null,null,null,null,null,null,"Aug",0.13,0.35,0.13,0.19]
[null,null,null,null,null,null,null,null,null,null,"Sep",0.17,0.78,0.17,0.25]
[null,null,null,null,null,null,null,null,null,null,"Oct",0.23,0.88,0.23,0.4]
[null,null,null,null,null,null,null,null,null,null,"Nov",0.36,1,0.35,0.61]
[null,null,null,null,null,null,null,null,null,null,"Dec",0.3,0.82,0.3,0.52]
[null,null,null,null,null,null,null,null,null,null,"Annual",{"$f":"AVERAGE(L22:L33)","v":0.17833333333333332},{"$f":"MAX(M22:M33)","v":3.96},{"$f":"AVERAGE(N22:N33)","v":0.16916666666666666},{"$f":"MAX(O22:O33)","v":0.61}]
[]
[null,null,null,null,null,null,null,null,null,{"$f":"+A5","v":2025},"mg/Nm3","Monthly mean of half-hourly averages","Highest half- hourly average","Monthly mean of  daily averages","Highest daily average"]
[null,null,null,null,null,null,null,null,null,"A3","Jan"]
[null,null,null,null,null,null,null,null,null,null,"Feb"]
[null,null,null,null,null,null,null,null,null,null,"Mar"]
[null,null,null,null,null,null,null,null,null,null,"Apr"]
[null,null,null,null,null,null,null,null,null,null,"May"]
[null,null,null,null,null,null,null,null,null,null,"Jun"]
[null,null,null,null,null,null,null,null,null,null,"Jul"]
[null,null,null,null,null,null,null,null,null,null,"Aug"]
[null,null,null,null,null,null,null,null,null,null,"Sep"]
[null,null,null,null,null,null,null,null,null,null,"Oct"]
[null,null,null,null,null,null,null,null,null,null,"Nov"]
["Comments :",null,null,null,null,null,null,null,null,null,"Dec"]
["An indicated ELV value of zero in the table above means that no ammonia limit is/was set in the permit.  ",null,null,null,null,null,null,null,null,null,"Annual",{"$f":"AVERAGE(L37:L48)","v":{"$error":"#DIV/0!"}},{"$f":"MAX(M37:M48)","v":0},{"$f":"AVERAGE(N37:N48)","v":{"$error":"#DIV/0!"}},{"$f":"MAX(O37:O48)","v":0}]
[]
[null,null,null,null,null,null,null,null,null,{"$f":"+A5","v":2025},"mg/Nm3","Monthly mean of half-hourly averages","Highest half- hourly average","Monthly mean of  daily averages","Highest daily average"]
[null,null,null,null,null,null,null,null,null,"A4","Jan"]
[null,null,null,null,null,null,null,null,null,null,"Feb"]
[null,null,null,null,null,null,null,null,null,null,"Mar"]
[null,null,null,null,null,null,null,null,null,null,"Apr"]
[null,null,null,null,null,null,null,null,null,null,"May"]
[null,null,null,null,null,null,null,null,null,null,"Jun"]
[null,null,null,null,null,null,null,null,null,null,"Jul"]
[null,null,null,null,null,null,null,null,null,null,"Aug"]
[null,null,null,null,null,null,null,null,null,null,"Sep"]
[null,null,null,null,null,null,null,null,null,null,"Oct"]
[null,null,null,null,null,null,null,null,null,null,"Nov"]
[null,null,null,null,null,null,null,null,null,null,"Dec"]
[null,null,null,null,null,null,null,null,null,null,"Annual",{"$f":"AVERAGE(L52:L63)","v":{"$error":"#DIV/0!"}},{"$f":"MAX(M52:M63)","v":0},{"$f":"AVERAGE(N52:N63)","v":{"$error":"#DIV/0!"}},{"$f":"MAX(O52:O63)","v":0}]
[]
[null,null,null,null,null,null,null,null,null,{"$f":"+A5","v":2025},"mg/Nm3","Monthly mean of half-hourly averages","Highest half- hourly average","Monthly mean of  daily averages","Highest daily average"]
[null,null,null,null,null,null,null,null,null,"A5","Jan"]
[null,null,null,null,null,null,null,null,null,null,"Feb"]
[null,null,null,null,null,null,null,null,null,null,"Mar"]
[null,null,null,null,null,null,null,null,null,null,"Apr"]
[null,null,null,null,null,null,null,null,null,null,"May"]
[null,null,null,null,null,null,null,null,null,null,"Jun"]
[null,null,null,null,null,null,null,null,null,null,"Jul"]
[null,null,null,null,null,null,null,null,null,null,"Aug"]
[null,null,null,null,null,null,null,null,null,null,"Sep"]
[null,null,null,null,null,null,null,null,null,null,"Oct"]
[null,null,null,null,null,null,null,null,null,null,"Nov"]
[null,null,null,null,null,null,null,null,null,null,"Dec"]
[null,null,null,null,null,null,null,null,null,null,"Annual",{"$f":"AVERAGE(L67:L78)","v":{"$error":"#DIV/0!"}},{"$f":"MAX(M67:M78)","v":0},{"$f":"AVERAGE(N67:N78)","v":{"$error":"#DIV/0!"}},{"$f":"MAX(O67:O78)","v":0}]

{"sheet":"Template changes log","index":22,"n_rows":23,"n_cols":3,"rows_kept":23,"cut":false,"hidden":false,"merged":[]}
["Log of changes to template (Environment Agency use only)"]
[]
["Date","Description of change","New version number and date"]
["2024-01-16","Air (periodic) tab: corrected default O2 reference from 6 to 11% ","Version 23.5a (for incinerators) - 16/01/2024"]
["2024-09-23","Air (periodic) tab: corrected symbol for Thallium to Tl"]
["2024-09-23","Air (periodic) tab: removed last year's references to different emission limit values applying from 03/12/23 and updated all relevant ELVs"]
["2024-09-23","Tabs for continuously monitored pollutants (HCl, SO2 etc.): changed terminology in table headings to improve clarity"]
["2024-09-23","Tabs for continuously monitored pollutants (HCl, SO2 etc.): removed last year's references to different emission limit values applying from 03/12/23 and updated all relevant ELVs"]
["2024-09-23","Perf 1 tab: updated formula for water usage to report m3 rather than litres and corrected error with formula copying operator name"]
["2024-09-23","Operational Summary tab: table added on start-ups and shut-downs"]
["2024-09-23","Operational Summary tab: table added on dioxins and mercury protocols"]
["2024-09-23","Operational Summary tab: table added on AST, QAL 2 and calibration functions"]
["2024-09-23","CO2 N2O tab: various changes made to notes to reflect the fact that most plants should now have calibrated CEMS and flow meters + some have C14 samplers and more up to date industry data","Version 24a (for incinerators) - 23/09/24"]
["2024-11-08","CO2 N2O tab: Changed the N2O CO2 equivalence factor from 298 to 265 in line with recently updated government greenhouse gas figures: https://www.gov.uk/government/publications/greenhouse-gas-reporting-conversion-factors-2024"]
["2024-11-08","CO2 N2O tab: Added an additional requirement for municipal EfW plants to state the yearly average biogenic percentage of the waste by mass, and reference to a document which sets out a methodology for calculating NCV of waste from the results of C14 sampling."]
["2024-11-08","Permit Compliance tab: Two additional columns added + explanatory notes to the table entitled \"Summary of non-compliances under the permit\" to allow CCS scores to be stated where relevant. "]
["2024-11-08","Residue Quality tab: Note added explaining application of TOC and LOI limits and asking operators to report both metrics where measured. ","Version 24.1a (for incinerators) - 08/11/24"]
["2024-11-27","Operational Summary tab: table added on start-ups and shut-downs","Version 24.2a (for incinerators) - 27/11/24"]
["2025-11-27","Cover Page: Print as PDF and Print Report and pdf buttons deleted and blank columns removed; contents page deleted","Version 25.1a (for incinerators) - 27/11/25"]
["2025-11-27","Residue Quality tab renamed to \"Residues\", and Summary of residue handling table moved from Operational Summary tab to Residues tab."]
["2025-11-27","Various changes made to the Operational Data tab including\n•\tReformatting of the rows under the Operational data heading (Rows 3-8) to make it clearer what information is required. \n•\tAmendment of the rows under the Energy Usage / Export heading (Rows 26-32) to calculate an “indicative parasitic load” (now excluding energy imported)\n•\tAmendment of the unit for gas usage from cubic feet to cubic metres (Row 50) \n•\tSome amendments to the first 2 notes and other minor edits\n•\tDeleted \"Overall Availability, mean avg. of all lines, hrs\" row"]
["2025-11-27","Operational Summary tab: Note added requiring all emergency shut-downs be listed, irrespective of whether or not they were reportable. "]
["2025-11-27","CO2 N2O tab: Note added to ask operators to ensure that relevant data reported here matches that which will be submitted under the Pollution Inventory"]